Workbook

Sheet Avantages perçus
A1: Bénéficiaire | B1: Type de bénéficiaire | C1: Entreprise | D1: Date | E1: Nature | F1: Montant
A2: Pr Stéphane OUDARD | B2: Médecin | C2: JANSSEN-CILAG | D2: 2013-01-10 | E2: REPAS | F2: 20
A3: Pr Stéphane OUDARD | B3: Médecin | C3: LABORATOIRE GLAXOSMITHKLINE | D3: 29/01/2013 | E3: Transport | F3: 68
A4: Pr Stéphane OUDARD | B4: Médecin | C4: AMGEN SAS | D4: 2013-02-08 | E4: REPAS | F4: 35
A5: Pr Stéphane OUDARD | B5: Médecin | C5: AMGEN SAS | D5: 2013-02-08 | E5: HEBERGEMENT | F5: 129
A6: Pr Stéphane OUDARD | B6: Médecin | C6: MERCK SERONO | D6: 28/02/2013 | E6: REPAS | F6: 11
A7: Pr Stéphane OUDARD | B7: Médecin | C7: LABORATOIRE GLAXOSMITHKLINE | D7: 16/05/2013 | E7: Hospitalite | F7: 20
A8: Pr Stéphane OUDARD | B8: Médecin | C8: MERCK SERONO | D8: 30/05/2013 | E8: REPAS | F8: 15
A9: Pr Stéphane OUDARD | B9: Médecin | C9: BOEHRINGER INGELHEIM FRANCE | D9: 30/08/2013 | E9: HOSPITALITE | F9: 28
A10: Pr Stéphane OUDARD | B10: Médecin | C10: LABORATOIRE GLAXOSMITHKLINE | D10: 2013-09-12 | E10: REPAS | F10: 17
A11: Pr Stéphane OUDARD | B11: Médecin | C11: SANOFI AVENTIS FRANCE | D11: 16/09/2013 | E11: Restauration | F11: 27
A12: Pr Stéphane OUDARD | B12: Médecin | C12: ASTELLAS PHARMA | D12: 27/09/2013 | E12: TRANSPORT | F12: 21
A13: Pr Stéphane OUDARD | B13: Médecin | C13: ASTELLAS PHARMA | D13: 27/09/2013 | E13: TRANSPORT | F13: 435
A14: Pr Stéphane OUDARD | B14: Médecin | C14: ASTELLAS PHARMA | D14: 27/09/2013 | E14: HEBERGEMENT | F14: 218
A15: Pr Stéphane OUDARD | B15: Médecin | C15: ASTELLAS PHARMA | D15: 27/09/2013 | E15: INVITATIONS | F15: 999
A16: Pr Stéphane OUDARD | B16: Médecin | C16: ASTELLAS PHARMA | D16: 27/09/2013 | E16: TRANSPORT | F16: 59
A17: Pr Stéphane OUDARD | B17: Médecin | C17: ASTELLAS PHARMA | D17: 27/09/2013 | E17: REPAS | F17: 50
A18: Pr Stéphane OUDARD | B18: Médecin | C18: ASTELLAS PHARMA | D18: 27/09/2013 | E18: TRANSPORT | F18: 80
A19: Pr Stéphane OUDARD | B19: Médecin | C19: ASTELLAS PHARMA | D19: 28/09/2013 | E19: HEBERGEMENT | F19: 218
A20: Pr Stéphane OUDARD | B20: Médecin | C20: ASTELLAS PHARMA | D20: 28/09/2013 | E20: REPAS | F20: 60
A21: Pr Stéphane OUDARD | B21: Médecin | C21: ASTELLAS PHARMA | D21: 29/09/2013 | E21: REPAS | F21: 60
A22: Pr Stéphane OUDARD | B22: Médecin | C22: ASTELLAS PHARMA | D22: 29/09/2013 | E22: HEBERGEMENT | F22: 218
A23: Pr Stéphane OUDARD | B23: Médecin | C23: ASTELLAS PHARMA | D23: 30/09/2013 | E23: HEBERGEMENT | F23: 218
A24: Pr Stéphane OUDARD | B24: Médecin | C24: Takeda France | D24: 2013-10-03 | E24: REPAS | F24: 25
A25: Pr Stéphane OUDARD | B25: Médecin | C25: NOVARTIS PHARMA SAS | D25: 18/10/2013 | E25: Autre : [Hospitalité Evenement Scientifique] | F25: 70
A26: Pr Stéphane OUDARD | B26: Médecin | C26: SANOFI AVENTIS FRANCE | D26: 18/10/2013 | E26: Restauration | F26: 43
A27: Pr Stéphane OUDARD | B27: Médecin | C27: SANOFI AVENTIS FRANCE | D27: 18/10/2013 | E27: Restauration | F27: 40
A28: Pr Stéphane OUDARD | B28: Médecin | C28: TEVA SANTE SAS | D28: 24/10/2013 | E28: REPAS | F28: 21
A29: Pr Stéphane OUDARD | B29: Médecin | C29: ConsuMed Research | D29: 24/10/2013 | E29: Autre : Indemnite | F29: 140
A30: Pr Stéphane OUDARD | B30: Médecin | C30: PFIZER SAS | D30: 2013-11-12 | E30: Repas | F30: 60
A31: Pr Stéphane OUDARD | B31: Médecin | C31: BRISTOL-MYERS SQUIBB | D31: 15/11/2013 | E31: Hébergement | F31: 207
A32: Pr Stéphane OUDARD | B32: Médecin | C32: BRISTOL-MYERS SQUIBB | D32: 15/11/2013 | E32: Transport | F32: 80
A33: Pr Stéphane OUDARD | B33: Médecin | C33: PFIZER SAS | D33: 2013-12-06 | E33: Repas | F33: 57
A34: Pr Stéphane OUDARD | B34: Médecin | C34: LABORATOIRE GLAXOSMITHKLINE | D34: 2013-12-12 | E34: REPAS | F34: 32
A35: Pr Stéphane OUDARD | B35: Médecin | C35: ROCHE SAS | D35: 16/01/2014 | E35: Repas | F35: 34
A36: Pr Stéphane OUDARD | B36: Médecin | C36: ROCHE SAS | D36: 2014-02-06 | E36: Repas | F36: 23
A37: Pr Stéphane OUDARD | B37: Médecin | C37: PFIZER INTERNATIONAL OPERATIONS | D37: 2014-02-12 | E37: TRANSPORT | F37: 150
A38: Pr Stéphane OUDARD | B38: Médecin | C38: PFIZER INTERNATIONAL OPERATIONS | D38: 2014-02-12 | E38: REPAS | F38: 125
A39: Pr Stéphane OUDARD | B39: Médecin | C39: PFIZER INTERNATIONAL OPERATIONS | D39: 2014-02-12 | E39: HEBERGEMENT | F39: 219
A40: Pr Stéphane OUDARD | B40: Médecin | C40: CHUGAI PHARMA FRANCE | D40: 13/02/2014 | E40: REPAS | F40: 20
A41: Pr Stéphane OUDARD | B41: Médecin | C41: ASTELLAS PHARMA | D41: 14/02/2014 | E41: TRANSPORT | F41: 49
A42: Pr Stéphane OUDARD | B42: Médecin | C42: PFIZER SAS | D42: 13/03/2014 | E42: REPAS | F42: 16
A43: Pr Stéphane OUDARD | B43: Médecin | C43: BRISTOL-MYERS SQUIBB | D43: 14/03/2014 | E43: Transport | F43: 154
A44: Pr Stéphane OUDARD | B44: Médecin | C44: JANSSEN-CILAG | D44: 20/03/2014 | E44: REPAS | F44: 20
A45: Pr Stéphane OUDARD | B45: Médecin | C45: SANOFI AVENTIS FRANCE | D45: 24/03/2014 | E45: Repas | F45: 25
A46: Pr Stéphane OUDARD | B46: Médecin | C46: ARIAD Pharmaceuticals (France) | D46: 26/03/2014 | E46: REPAS | F46: 23
A47: Pr Stéphane OUDARD | B47: Médecin | C47: Takeda France | D47: 27/03/2014 | E47: REPAS | F47: 20
A48: Pr Stéphane OUDARD | B48: Médecin | C48: SANOFI AVENTIS FRANCE | D48: 30/03/2014 | E48: Hébergement | F48: 360
A49: Pr Stéphane OUDARD | B49: Médecin | C49: SANOFI AVENTIS FRANCE | D49: 30/03/2014 | E49: Autre : [Restauration] | F49: 248
A50: Pr Stéphane OUDARD | B50: Médecin | C50: SANOFI AVENTIS FRANCE | D50: 30/03/2014 | E50: Hébergement | F50: 360
A51: Pr Stéphane OUDARD | B51: Médecin | C51: SANOFI AVENTIS FRANCE | D51: 30/03/2014 | E51: Autre : [Restauration] | F51: 248
A52: Pr Stéphane OUDARD | B52: Médecin | C52: PFIZER SAS | D52: 2014-04-02 | E52: REPAS | F52: 46
A53: Pr Stéphane OUDARD | B53: Médecin | C53: ASTELLAS PHARMA | D53: 2014-04-03 | E53: REPAS | F53: 19
A54: Pr Stéphane OUDARD | B54: Médecin | C54: ROCHE SAS | D54: 2014-04-10 | E54: Repas | F54: 23
A55: Pr Stéphane OUDARD | B55: Médecin | C55: LABORATOIRE GLAXOSMITHKLINE | D55: 23/04/2014 | E55: REPAS | F55: 25
A56: Pr Stéphane OUDARD | B56: Médecin | C56: LABORATOIRE GLAXOSMITHKLINE | D56: 25/04/2014 | E56: TRANSPORT | F56: 308
A57: Pr Stéphane OUDARD | B57: Médecin | C57: LABORATOIRE GLAXOSMITHKLINE | D57: 25/04/2014 | E57: REPAS | F57: 50
A58: Pr Stéphane OUDARD | B58: Médecin | C58: LABORATOIRE GLAXOSMITHKLINE | D58: 25/04/2014 | E58: TRANSPORT | F58: 155
A59: Pr Stéphane OUDARD | B59: Médecin | C59: Bayer HealthCare SAS | D59: 14/05/2014 | E59: Hospitalité | F59: 12
A60: Pr Stéphane OUDARD | B60: Médecin | C60: LABORATOIRE GLAXOSMITHKLINE | D60: 14/05/2014 | E60: REPAS | F60: 60
A61: Pr Stéphane OUDARD | B61: Médecin | C61: JANSSEN-CILAG | D61: 15/05/2014 | E61: REPAS | F61: 24
A62: Pr Stéphane OUDARD | B62: Médecin | C62: Takeda France | D62: 15/05/2014 | E62: HONORAIRES | F62: 500
A63: Pr Stéphane OUDARD | B63: Médecin | C63: SANOFI AVENTIS FRANCE | D63: 17/05/2014 | E63: Autre : [Restauration] | F63: 103
A64: Pr Stéphane OUDARD | B64: Médecin | C64: SANOFI AVENTIS FRANCE | D64: 17/05/2014 | E64: Hébergement | F64: 150
A65: Pr Stéphane OUDARD | B65: Médecin | C65: SANOFI AVENTIS FRANCE | D65: 17/05/2014 | E65: Hébergement | F65: 150
A66: Pr Stéphane OUDARD | B66: Médecin | C66: SANOFI AVENTIS FRANCE | D66: 17/05/2014 | E66: Autre : [Restauration] | F66: 86
A67: Pr Stéphane OUDARD | B67: Médecin | C67: LABORATOIRE GLAXOSMITHKLINE | D67: 22/05/2014 | E67: REPAS | F67: 22
A68: Pr Stéphane OUDARD | B68: Médecin | C68: PFIZER SAS | D68: 25/05/2014 | E68: HOSPITALITE | F68: 77
A69: Pr Stéphane OUDARD | B69: Médecin | C69: NOVARTIS PHARMA SAS | D69: 29/05/2014 | E69: Transport | F69: 5640
A70: Pr Stéphane OUDARD | B70: Médecin | C70: PFIZER SAS | D70: 2014-06-12 | E70: REPAS | F70: 19
A71: Pr Stéphane OUDARD | B71: Médecin | C71: SANOFI AVENTIS FRANCE | D71: 21/06/2014 | E71: Autre : [Restauration] | F71: 124
A72: Pr Stéphane OUDARD | B72: Médecin | C72: SANOFI AVENTIS FRANCE | D72: 21/06/2014 | E72: Autre : [Restauration] | F72: 80
A73: Pr Stéphane OUDARD | B73: Médecin | C73: SANOFI AVENTIS FRANCE | D73: 21/06/2014 | E73: Hébergement | F73: 166
A74: Pr Stéphane OUDARD | B74: Médecin | C74: SANOFI AVENTIS FRANCE | D74: 21/06/2014 | E74: Hébergement | F74: 166
A75: Pr Stéphane OUDARD | B75: Médecin | C75: SANOFI AVENTIS FRANCE | D75: 26/06/2014 | E75: Repas | F75: 20
A76: Pr Stéphane OUDARD | B76: Médecin | C76: ROCHE SAS | D76: 2014-07-03 | E76: Repas | F76: 23
A77: Pr Stéphane OUDARD | B77: Médecin | C77: ROCHE SAS | D77: 2014-07-03 | E77: Repas | F77: 23
A78: Pr Stéphane OUDARD | B78: Médecin | C78: Lilly France SAS | D78: 2014-07-04 | E78: REPAS | F78: 31
A79: Pr Stéphane OUDARD | B79: Médecin | C79: SANOFI AVENTIS FRANCE | D79: 2014-07-10 | E79: Autre : [Remboursement de frais] | F79: 102
A80: Pr Stéphane OUDARD | B80: Médecin | C80: SANOFI AVENTIS FRANCE | D80: 2014-08-07 | E80: Autre : [Remboursement de frais] | F80: 94
A81: Pr Stéphane OUDARD | B81: Médecin | C81: SANOFI AVENTIS FRANCE | D81: 2014-09-03 | E81: Repas | F81: 30
A82: Pr Stéphane OUDARD | B82: Médecin | C82: NOVARTIS PHARMA SAS | D82: 2014-09-04 | E82: Autre : [Participation Evenement Scientifique] | F82: 20
A83: Pr Stéphane OUDARD | B83: Médecin | C83: BOEHRINGER INGELHEIM FRANCE | D83: 2014-09-11 | E83: HOSPITALITE | F83: 23
A84: Pr Stéphane OUDARD | B84: Médecin | C84: AMGEN SAS | D84: 18/09/2014 | E84: REPAS IMPROMPTU | F84: 25
A85: Pr Stéphane OUDARD | B85: Médecin | C85: SANOFI AVENTIS FRANCE | D85: 18/09/2014 | E85: Repas | F85: 273
A86: Pr Stéphane OUDARD | B86: Médecin | C86: SANOFI AVENTIS FRANCE | D86: 18/09/2014 | E86: Inscription | F86: 660
A87: Pr Stéphane OUDARD | B87: Médecin | C87: SANOFI AVENTIS FRANCE | D87: 18/09/2014 | E87: Hébergement | F87: 423
A88: Pr Stéphane OUDARD | B88: Médecin | C88: SANOFI AVENTIS FRANCE | D88: 18/09/2014 | E88: Transport | F88: 659
A89: Pr Stéphane OUDARD | B89: Médecin | C89: BRISTOL-MYERS SQUIBB | D89: 30/09/2014 | E89: Repas | F89: 39
A90: Pr Stéphane OUDARD | B90: Médecin | C90: JANSSEN-CILAG | D90: 2014-10-03 | E90: REPAS | F90: 32
A91: Pr Stéphane OUDARD | B91: Médecin | C91: Bayer HealthCare SAS | D91: 16/10/2014 | E91: Hospitalité | F91: 26
A92: Pr Stéphane OUDARD | B92: Médecin | C92: HOSPIRA FRANCE | D92: 23/10/2014 | E92: HOSPITALITE | F92: 19
A93: Pr Stéphane OUDARD | B93: Médecin | C93: ROCHE SAS | D93: 30/10/2014 | E93: Repas | F93: 43
A94: Pr Stéphane OUDARD | B94: Médecin | C94: ROCHE SAS | D94: 30/10/2014 | E94: Repas | F94: 43
A95: Pr Stéphane OUDARD | B95: Médecin | C95: JANSSEN-CILAG | D95: 31/10/2014 | E95: AUTRE : REMBOURSEMENT DE FRAIS | F95: 55
A96: Pr Stéphane OUDARD | B96: Médecin | C96: SANOFI AVENTIS FRANCE | D96: 2014-11-03 | E96: Repas | F96: 20
A97: Pr Stéphane OUDARD | B97: Médecin | C97: BOEHRINGER INGELHEIM FRANCE | D97: 2014-11-06 | E97: HOSPITALITE | F97: 18
A98: Pr Stéphane OUDARD | B98: Médecin | C98: LEO Pharma | D98: 13/11/2014 | E98: REPAS | F98: 15
A99: Pr Stéphane OUDARD | B99: Médecin | C99: SANOFI-AVENTIS GROUPE | D99: 20/11/2014 | E99: Hébergement | F99: 150
A100: Pr Stéphane OUDARD | B100: Médecin | C100: SANOFI-AVENTIS GROUPE | D100: 20/11/2014 | E100: Transport | F100: 154
A101: Pr Stéphane OUDARD | B101: Médecin | C101: SANOFI AVENTIS FRANCE | D101: 20/11/2014 | E101: Repas | F101: 20
A102: Pr Stéphane OUDARD | B102: Médecin | C102: Takeda France | D102: 22/11/2014 | E102: Inscription | F102: 490
A103: Pr Stéphane OUDARD | B103: Médecin | C103: NOVARTIS PHARMA SAS | D103: 2014-12-03 | E103: Autre : [Participation Evenement Scientifique] | F103: 60
A104: Pr Stéphane OUDARD | B104: Médecin | C104: MERCK SERONO | D104: 2014-12-04 | E104: REPAS | F104: 19
A105: Pr Stéphane OUDARD | B105: Médecin | C105: PIERRE FABRE MEDICAMENT | D105: 2014-12-10 | E105: RESTAURATION | F105: 15
A106: Pr Stéphane OUDARD | B106: Médecin | C106: NOVARTIS PHARMA SAS | D106: 2014-12-11 | E106: Repas | F106: 20
A107: Pr Stéphane OUDARD | B107: Médecin | C107: NOVARTIS PHARMA SAS | D107: 2014-12-11 | E107: Hébergement | F107: 172
A108: Pr Stéphane OUDARD | B108: Médecin | C108: NOVARTIS PHARMA SAS | D108: 2014-12-11 | E108: Transport | F108: 188
A109: Pr Stéphane OUDARD | B109: Médecin | C109: NOVARTIS PHARMA SAS | D109: 2014-12-11 | E109: Repas | F109: 110
A110: Pr Stéphane OUDARD | B110: Médecin | C110: CHUGAI PHARMA FRANCE | D110: 2014-12-12 | E110: REPAS | F110: 38
A111: Pr Stéphane OUDARD | B111: Médecin | C111: PFIZER SAS | D111: 14/12/2014 | E111: Repas | F111: 13
A112: Pr Stéphane OUDARD | B112: Médecin | C112: MEDA PHARMA | D112: 17/12/2014 | E112: REPAS | F112: 22
A113: Pr Stéphane OUDARD | B113: Médecin | C113: MEDA PHARMA | D113: 17/12/2014 | E113: REPAS | F113: 22
A114: Pr Stéphane OUDARD | B114: Médecin | C114: MEDA PHARMA | D114: 17/12/2014 | E114: REPAS | F114: 20
A115: Pr Stéphane OUDARD | B115: Médecin | C115: SANOFI-AVENTIS GROUPE | D115: 24/12/2014 | E115: Autre : [Remboursement de frais] | F115: 122
A116: Pr Stéphane OUDARD | B116: Médecin | C116: SANOFI-AVENTIS GROUPE | D116: 24/12/2014 | E116: Autre : [Remboursement de frais] | F116: 122
A117: Pr Stéphane OUDARD | B117: Médecin | C117: NOVARTIS PHARMA SAS | D117: 2015-01-08 | E117: AUTRE : [PARTICIPATION EVENEMENT SCIENTIFIQUE] | F117: 20
A118: Pr Stéphane OUDARD | B118: Médecin | C118: SANOFI AVENTIS FRANCE | D118: 14/01/2015 | E118: Repas | F118: 40
A119: Pr Stéphane OUDARD | B119: Médecin | C119: SANOFI AVENTIS FRANCE | D119: 14/01/2015 | E119: Repas | F119: 35
A120: Pr Stéphane OUDARD | B120: Médecin | C120: TEVA SANTE SAS | D120: 15/01/2015 | E120: Autre : [Restauration] | F120: 14
A121: Pr Stéphane OUDARD | B121: Médecin | C121: SANOFI AVENTIS FRANCE | D121: 16/01/2015 | E121: Repas | F121: 58
A122: Pr Stéphane OUDARD | B122: Médecin | C122: SANOFI AVENTIS FRANCE | D122: 19/01/2015 | E122: Repas | F122: 32
A123: Pr Stéphane OUDARD | B123: Médecin | C123: ROCHE SAS | D123: 22/01/2015 | E123: Repas | F123: 23
A124: Pr Stéphane OUDARD | B124: Médecin | C124: A+A | D124: 2015-02-02 | E124: AUTRE [ENQUETE] | F124: 40
A125: Pr Stéphane OUDARD | B125: Médecin | C125: SANOFI-AVENTIS GROUPE | D125: 2015-02-10 | E125: Hébergement | F125: 87
A126: Pr Stéphane OUDARD | B126: Médecin | C126: SANOFI-AVENTIS GROUPE | D126: 2015-02-12 | E126: Transport | F126: 2227
A127: Pr Stéphane OUDARD | B127: Médecin | C127: SANOFI-AVENTIS GROUPE | D127: 17/02/2015 | E127: Transport | F127: 587
A128: Pr Stéphane OUDARD | B128: Médecin | C128: CHUGAI PHARMA FRANCE | D128: 19/02/2015 | E128: REPAS | F128: 23
A129: Pr Stéphane OUDARD | B129: Médecin | C129: JANSSEN-CILAG | D129: 20/02/2015 | E129: AUTRE : REMBOURSEMENT DE FRAIS | F129: 18
A130: Pr Stéphane OUDARD | B130: Médecin | C130: NOVARTIS PHARMA SAS | D130: 26/02/2015 | E130: TRANSPORT | F130: 5389
A131: Pr Stéphane OUDARD | B131: Médecin | C131: NOVARTIS PHARMA SAS | D131: 26/02/2015 | E131: HÉBERGEMENT | F131: 741
A132: Pr Stéphane OUDARD | B132: Médecin | C132: ICOMED | D132: 2015-03-02 | E132: Autre: [Enquête] | F132: 31
A133: Pr Stéphane OUDARD | B133: Médecin | C133: PIERRE FABRE MEDICAMENT | D133: 2015-03-05 | E133: RESTAURATION | F133: 25
A134: Pr Stéphane OUDARD | B134: Médecin | C134: AMGEN SAS | D134: 2015-03-09 | E134: REPAS IMPROMPTU | F134: 13
A135: Pr Stéphane OUDARD | B135: Médecin | C135: SANOFI AVENTIS FRANCE | D135: 2015-03-12 | E135: Repas | F135: 76
A136: Pr Stéphane OUDARD | B136: Médecin | C136: SANOFI-AVENTIS GROUPE | D136: 20/03/2015 | E136: Repas | F136: 55
A137: Pr Stéphane OUDARD | B137: Médecin | C137: PFIZER SAS | D137: 24/03/2015 | E137: Repas | F137: 19
A138: Pr Stéphane OUDARD | B138: Médecin | C138: SANOFI AVENTIS FRANCE | D138: 26/03/2015 | E138: Autre : [Remboursement de frais] | F138: 13
A139: Pr Stéphane OUDARD | B139: Médecin | C139: ROCHE SAS | D139: 2015-04-02 | E139: Repas | F139: 16
A140: Pr Stéphane OUDARD | B140: Médecin | C140: SANOFI-AVENTIS GROUPE | D140: 2015-04-07 | E140: Autre : [Remboursement de frais] | F140: 172
A141: Pr Stéphane OUDARD | B141: Médecin | C141: SANOFI AVENTIS FRANCE | D141: 2015-04-12 | E141: Autre : [Restauration] | F141: 229
A142: Pr Stéphane OUDARD | B142: Médecin | C142: SANOFI AVENTIS FRANCE | D142: 2015-04-12 | E142: Hébergement | F142: 288
A143: Pr Stéphane OUDARD | B143: Médecin | C143: AMGEN SAS | D143: 16/04/2015 | E143: REPAS REUNION | F143: 18
A144: Pr Stéphane OUDARD | B144: Médecin | C144: SANOFI-AVENTIS GROUPE | D144: 16/04/2015 | E144: Hébergement | F144: 219
A145: Pr Stéphane OUDARD | B145: Médecin | C145: SANOFI-AVENTIS GROUPE | D145: 2015-05-05 | E145: Autre : [Remboursement de frais] | F145: 174
A146: Pr Stéphane OUDARD | B146: Médecin | C146: HOSPIRA FRANCE | D146: 13/05/2015 | E146: HOSPITALITE | F146: 37
A147: Pr Stéphane OUDARD | B147: Médecin | C147: NOVARTIS PHARMA SAS | D147: 29/05/2015 | E147: AUTRE : [INSCRIPTION EVENEMENT SCIENTIFIQUE] | F147: 555
A148: Pr Stéphane OUDARD | B148: Médecin | C148: NOVARTIS PHARMA SAS | D148: 29/05/2015 | E148: REPAS | F148: 305
A149: Pr Stéphane OUDARD | B149: Médecin | C149: NOVARTIS PHARMA SAS | D149: 29/05/2015 | E149: TRANSPORT | F149: 6891
A150: Pr Stéphane OUDARD | B150: Médecin | C150: NOVARTIS PHARMA SAS | D150: 29/05/2015 | E150: HÉBERGEMENT | F150: 1815
A151: Pr Stéphane OUDARD | B151: Médecin | C151: SANOFI-AVENTIS GROUPE | D151: 2015-06-01 | E151: Hébergement | F151: 294
A152: Pr Stéphane OUDARD | B152: Médecin | C152: SANOFI-AVENTIS GROUPE | D152: 2015-06-01 | E152: Transport | F152: 656
A153: Pr Stéphane OUDARD | B153: Médecin | C153: SANOFI-AVENTIS GROUPE | D153: 2015-06-01 | E153: Repas | F153: 87
A154: Pr Stéphane OUDARD | B154: Médecin | C154: SANOFI AVENTIS FRANCE | D154: 15/06/2015 | E154: Repas | F154: 59
A155: Pr Stéphane OUDARD | B155: Médecin | C155: SANOFI AVENTIS FRANCE | D155: 15/06/2015 | E155: Repas | F155: 15
A156: Pr Stéphane OUDARD | B156: Médecin | C156: NOVARTIS PHARMA SAS | D156: 18/06/2015 | E156: AUTRE : [PARTICIPATION EVENEMENT SCIENTIFIQUE] | F156: 21
A157: Pr Stéphane OUDARD | B157: Médecin | C157: SANOFI AVENTIS FRANCE | D157: 20/06/2015 | E157: Hébergement | F157: 176
A158: Pr Stéphane OUDARD | B158: Médecin | C158: SANOFI AVENTIS FRANCE | D158: 20/06/2015 | E158: Autre : [Restauration] | F158: 121
A159: Pr Stéphane OUDARD | B159: Médecin | C159: SANOFI AVENTIS FRANCE | D159: 20/06/2015 | E159: Autre : [Restauration] | F159: 105
A160: Pr Stéphane OUDARD | B160: Médecin | C160: SANOFI-AVENTIS GROUPE | D160: 30/06/2015 | E160: Repas | F160: 17
A161: Pr Stéphane OUDARD | B161: Médecin | C161: SANOFI-AVENTIS GROUPE | D161: 2015-07-05 | E161: Hébergement | F161: 140
A162: Pr Stéphane OUDARD | B162: Médecin | C162: SANOFI-AVENTIS GROUPE | D162: 2015-07-05 | E162: Hébergement | F162: 140
A163: Pr Stéphane OUDARD | B163: Médecin | C163: SANOFI-AVENTIS GROUPE | D163: 2015-07-05 | E163: Transport | F163: 1071
A164: Pr Stéphane OUDARD | B164: Médecin | C164: Takeda France | D164: 2015-07-07 | E164: HONORAIRES | F164: 1500
A165: Pr Stéphane OUDARD | B165: Médecin | C165: HOSPIRA FRANCE | D165: 2015-07-09 | E165: [HOSPITALITE] | F165: 19
A166: Pr Stéphane OUDARD | B166: Médecin | C166: ConsuMed Research | D166: 27/07/2015 | E166: Autre : Indemnite | F166: 170
A167: Pr Stéphane OUDARD | B167: Médecin | C167: ConsuMed Research | D167: 28/07/2015 | E167: Autre : Indemnite | F167: 250
A168: Pr Stéphane OUDARD | B168: Médecin | C168: FERRING SAS | D168: 29/07/2015 | E168: Repas | F168: 60
A169: Pr Stéphane OUDARD | B169: Médecin | C169: SANOFI AVENTIS FRANCE | D169: 21/08/2015 | E169: Repas | F169: 50
A170: Pr Stéphane OUDARD | B170: Médecin | C170: Health Advances | D170: 28/08/2015 | E170: Autre: Phone consult | F170: 309
A171: Pr Stéphane OUDARD | B171: Médecin | C171: SANOFI-AVENTIS GROUPE | D171: 2015-09-02 | E171: Transport | F171: 383
A172: Pr Stéphane OUDARD | B172: Médecin | C172: JANSSEN-CILAG | D172: 2015-09-03 | E172: HEBERGEMENT | F172: 350
A173: Pr Stéphane OUDARD | B173: Médecin | C173: JANSSEN-CILAG | D173: 2015-09-03 | E173: TRANSPORT | F173: 342
A174: Pr Stéphane OUDARD | B174: Médecin | C174: JANSSEN-CILAG | D174: 2015-09-03 | E174: INSCRIPTION | F174: 600
A175: Pr Stéphane OUDARD | B175: Médecin | C175: PIERRE FABRE MEDICAMENT | D175: 2015-09-03 | E175: RESTAURATION | F175: 19
A176: Pr Stéphane OUDARD | B176: Médecin | C176: JANSSEN-CILAG | D176: 2015-09-03 | E176: AUTRE : REMBOURSEMENT DE FRAIS | F176: 88
A177: Pr Stéphane OUDARD | B177: Médecin | C177: JANSSEN-CILAG | D177: 2015-09-03 | E177: REPAS | F177: 140
A178: Pr Stéphane OUDARD | B178: Médecin | C178: ROCHE SAS | D178: 2015-09-10 | E178: Repas | F178: 23
A179: Pr Stéphane OUDARD | B179: Médecin | C179: SANDOZ | D179: 15/09/2015 | E179: REPAS | F179: 20
A180: Pr Stéphane OUDARD | B180: Médecin | C180: SANOFI AVENTIS FRANCE | D180: 17/09/2015 | E180: Repas | F180: 20
A181: Pr Stéphane OUDARD | B181: Médecin | C181: MERCK SERONO | D181: 24/09/2015 | E181: REPAS | F181: 30
A182: Pr Stéphane OUDARD | B182: Médecin | C182: ICOMED | D182: 28/09/2015 | E182: Autre: [Enquête] | F182: 24
A183: Pr Stéphane OUDARD | B183: Médecin | C183: SANOFI-AVENTIS GROUPE | D183: 2015-10-01 | E183: Hébergement | F183: 90
A184: Pr Stéphane OUDARD | B184: Médecin | C184: SANOFI AVENTIS FRANCE | D184: 2015-10-02 | E184: Repas | F184: 20
A185: Pr Stéphane OUDARD | B185: Médecin | C185: SANOFI AVENTIS FRANCE | D185: 2015-10-05 | E185: Repas | F185: 20
A186: Pr Stéphane OUDARD | B186: Médecin | C186: JANSSEN-CILAG | D186: 2015-10-05 | E186: REPAS | F186: 15
A187: Pr Stéphane OUDARD | B187: Médecin | C187: BOEHRINGER INGELHEIM FRANCE | D187: 2015-10-08 | E187: HOSPITALITE | F187: 23
A188: Pr Stéphane OUDARD | B188: Médecin | C188: ConsuMed Research | D188: 2015-10-08 | E188: Autre : Indemnite | F188: 150
A189: Pr Stéphane OUDARD | B189: Médecin | C189: PIERRE FABRE MEDICAMENT | D189: 13/10/2015 | E189: RESTAURATION | F189: 21
A190: Pr Stéphane OUDARD | B190: Médecin | C190: BRISTOL-MYERS SQUIBB | D190: 22/10/2015 | E190: Repas | F190: 49
A191: Pr Stéphane OUDARD | B191: Médecin | C191: SANOFI AVENTIS FRANCE | D191: 23/10/2015 | E191: Inscription | F191: 150
A192: Pr Stéphane OUDARD | B192: Médecin | C192: PASCALEO | D192: 23/10/2015 | E192: AUTRE [ENQUETE] | F192: 35
A193: Pr Stéphane OUDARD | B193: Médecin | C193: SANOFI AVENTIS FRANCE | D193: 2015-11-04 | E193: Repas | F193: 47
A194: Pr Stéphane OUDARD | B194: Médecin | C194: SANOFI-AVENTIS GROUPE | D194: 2015-11-12 | E194: Repas | F194: 106
A195: Pr Stéphane OUDARD | B195: Médecin | C195: SANOFI-AVENTIS GROUPE | D195: 18/11/2015 | E195: Transport | F195: 41
A196: Pr Stéphane OUDARD | B196: Médecin | C196: BRISTOL-MYERS SQUIBB | D196: 20/11/2015 | E196: Autre : [Rémunération] | F196: 840
A197: Pr Stéphane OUDARD | B197: Médecin | C197: PFIZER SAS | D197: 2015-12-01 | E197: Repas | F197: 60
A198: Pr Stéphane OUDARD | B198: Médecin | C198: LEO Pharma | D198: 2015-12-03 | E198: REPAS | F198: 15
A199: Pr Stéphane OUDARD | B199: Médecin | C199: SANOFI AVENTIS FRANCE | D199: 2015-12-10 | E199: Repas | F199: 19
A200: Pr Stéphane OUDARD | B200: Médecin | C200: SANOFI-AVENTIS GROUPE | D200: 15/12/2015 | E200: Hébergement | F200: 230
... 283 more rows

Sheet Conventions signées
A1: Bénéficiaire | B1: Type de bénéficiaire | C1: Entreprise | D1: Date | E1: Période | F1: Objet | G1: Montants | H1: Lieux
A2: Pr Stéphane OUDARD | B2: Médecin | C2: SANOFI AVENTIS FRANCE | D2: 12/01/2013 | E2: 12/01/2013 - 12/01/2013 | F2: Hospitalité
A3: Pr Stéphane OUDARD | B3: Médecin | C3: ICON Clinical Research Limited | D3: 18/01/2013 | E3: 18/01/2013 - 18/01/2013 | F3: Recherche scientifique | G3: 300
A4: Pr Stéphane OUDARD | B4: Médecin | C4: ICON Clinical Research Limited | D4: 28/01/2013 | E4: 28/01/2013 - 28/01/2013 | F4: Recherche scientifique | G4: 1250
A5: Pr Stéphane OUDARD | B5: Médecin | C5: AMGEN SAS | D5: 08/02/2013 | E5: 08/02/2013 - 09/02/2013 | F5: Autre : CONGRES/SYMPOSIUM
A6: Pr Stéphane OUDARD | B6: Médecin | C6: SANOFI AVENTIS FRANCE | D6: 22/02/2013 | E6: 12/04/2013 - 13/04/2013 | F6: Contrat d'intervenant à une manifestation / orateur
A7: Pr Stéphane OUDARD | B7: Médecin | C7: PFIZER INTERNATIONAL OPERATIONS | D7: 01/03/2013 | E7: 01/03/2013 - | F7: Autre : CONSEIL
A8: Pr Stéphane OUDARD | B8: Médecin | C8: SANOFI-AVENTIS GROUPE | D8: 01/03/2013 | E8: 01/03/2013 - 01/03/2014 | F8: Contrat d'expert scientifique, contrat dans le cadre d'une recherche, contrat de consultant
A9: Pr Stéphane OUDARD | B9: Médecin | C9: SANOFI-AVENTIS GROUPE | D9: 12/03/2013 | E9: 12/03/2013 - | F9: Contrat d'intervenant à une manifestation / orateur
A10: Pr Stéphane OUDARD | B10: Médecin | C10: PFIZER SAS | D10: 21/03/2013 | E10: 21/03/2013 - | F10: Autre : ORATEUR RP/CONGRES/SYMPOSIUM
A11: Pr Stéphane OUDARD | B11: Médecin | C11: SANOFI-AVENTIS GROUPE | D11: 02/04/2013 | E11: 02/04/2013 - | F11: Contrat d'expert scientifique, contrat dans le cadre d'une recherche, contrat de consultant
A12: Pr Stéphane OUDARD | B12: Médecin | C12: JANSSEN-CILAG | D12: 11/04/2013 | E12: 11/04/2013 - 11/04/2013 | F12: Autre : CONGRES / SYMPOSIUM
A13: Pr Stéphane OUDARD | B13: Médecin | C13: SANOFI AVENTIS FRANCE | D13: 19/04/2013 | E13: 19/04/2013 - 20/04/2013 | F13: Hospitalité
A14: Pr Stéphane OUDARD | B14: Médecin | C14: PFIZER SAS | D14: 23/04/2013 | E14: 23/04/2013 - | F14: Recherche scientifique
A15: Pr Stéphane OUDARD | B15: Médecin | C15: SANOFI AVENTIS FRANCE | D15: 21/05/2013 | E15: 21/05/2013 - 23/05/2013 | F15: Formation
A16: Pr Stéphane OUDARD | B16: Médecin | C16: TBWA\ADELPHI | D16: 16/07/2013 | E16: 16/07/2013 - | F16: Autre : Conseil
A17: Pr Stéphane OUDARD | B17: Médecin | C17: Bayer HealthCare SAS | D17: 03/09/2013 | E17: 03/09/2013 - 06/09/2013 | F17: Autre : Contrat de conseil scientifique | H17: CHANTILLY
A18: Pr Stéphane OUDARD | B18: Médecin | C18: Bayer HealthCare SAS | D18: 26/09/2013 | E18: 26/09/2013 - 26/09/2013 | F18: Autre : Contrat de conseil scientifique | H18: Amsterdam
A19: Pr Stéphane OUDARD | B19: Médecin | C19: ASTELLAS PHARMA | D19: 27/09/2013 | E19: 27/09/2013 - 01/10/2013 | F19: Autre : CONGRES / SYMPOSIUM | H19: Amsterdam
A20: Pr Stéphane OUDARD | B20: Médecin | C20: Bayer HealthCare SAS | D20: 27/09/2013 | E20: 27/09/2013 - 27/09/2013 | F20: Autre : Contrat de conseil scientifique | H20: Amsterdam
A21: Pr Stéphane OUDARD | B21: Médecin | C21: SANOFI AVENTIS FRANCE | D21: 10/10/2013 | E21: 10/10/2013 - 12/10/2013 | F21: Autre : Convention d'Hospitalité | H21: Nice
A22: Pr Stéphane OUDARD | B22: Médecin | C22: NOVARTIS PHARMA SAS | D22: 11/10/2013 | E22: 11/10/2013 - 27/11/2013 | F22: Autre : Autre : [Contrat de conseil & prestation]
A23: Pr Stéphane OUDARD | B23: Médecin | C23: IPSEN PHARMA | D23: 14/10/2013 | E23: 05/11/2013 - 31/12/2015 | F23: Autre : CONSEIL
A24: Pr Stéphane OUDARD | B24: Médecin | C24: SANOFI AVENTIS FRANCE | D24: 18/10/2013 | E24: 18/10/2013 - 18/10/2013 | F24: Autre : Convention d'Hospitalité
A25: Pr Stéphane OUDARD | B25: Médecin | C25: PFIZER SAS | D25: 25/10/2013 | E25: 25/10/2013 - | F25: Autre : ORATEUR RP/CONGRES/SYMPOSIUM
A26: Pr Stéphane OUDARD | B26: Médecin | C26: Bayer HealthCare SAS | D26: 06/11/2013 | E26: 10/12/2013 - 10/12/2013 | F26: Autre : Contrat de conseil scientifique | H26: Loos
A27: Pr Stéphane OUDARD | B27: Médecin | C27: PFIZER SAS | D27: 08/11/2013 | E27: 08/11/2013 - 08/11/2013 | F27: Autre : ORATEUR RP/CONGRES/SYMPOSIUM
A28: Pr Stéphane OUDARD | B28: Médecin | C28: ASTELLAS PHARMA Ltd | D28: 29/11/2013 | E28: 29/11/2013 - 29/11/2013 | F28: Autre : CONSEIL
A29: Pr Stéphane OUDARD | B29: Médecin | C29: LABORATOIRE GLAXOSMITHKLINE | D29: 12/12/2013 | E29: 12/12/2013 - | F29: Autre : AUTRE : [CONVENTION HOSPITALITE]
A30: Pr Stéphane OUDARD | B30: Médecin | C30: JANSSEN-CILAG | D30: 19/12/2013 | E30: 01/02/2014 - 01/02/2014 | F30: Autre : CONSEIL
A31: Pr Stéphane OUDARD | B31: Médecin | C31: NOVARTIS PHARMA SAS | D31: 15/01/2014 | E31: 15/01/2014 - 28/02/2014 | F31: Autre : Autre : [Contrat de conseil & prestation]
A32: Pr Stéphane OUDARD | B32: Médecin | C32: ROCHE SAS | D32: 16/01/2014 | E32: 16/01/2014 - 16/01/2014 | F32: Autre : Autre : [ Reunion professionnelle ]
A33: Pr Stéphane OUDARD | B33: Médecin | C33: PFIZER SAS | D33: 24/01/2014 | E33: 24/01/2014 - 24/01/2014 | F33: Autre : ORATEUR RP/CONGRES/SYMPO
A34: Pr Stéphane OUDARD | B34: Médecin | C34: PFIZER SAS | D34: 24/01/2014 | E34: 24/01/2014 - 24/01/2014 | F34: Autre : ORATEUR RP/CONGRES/SYMPO
A35: Pr Stéphane OUDARD | B35: Médecin | C35: LABORATOIRE GLAXOSMITHKLINE | D35: 11/02/2014 | E35: 11/02/2014 - | F35: Autre : AUTRE : [COLLABORATION SCIENTIFIQUE]
A36: Pr Stéphane OUDARD | B36: Médecin | C36: Takeda France | D36: 21/02/2014 | E36: 24/03/2014 - 31/12/2014 | F36: Autre : Autre : [Contrat de consultant]
A37: Pr Stéphane OUDARD | B37: Médecin | C37: Bayer HealthCare SAS | D37: 21/02/2014 | E37: 21/02/2014 - 04/02/2015 | F37: Autre : CONSEIL SCIENTIFIQUE - BAYER USA
A38: Pr Stéphane OUDARD | B38: Médecin | C38: ROCHE SAS | D38: 26/02/2014 | E38: 26/02/2014 - 26/02/2014 | F38: Autre : Autre : [ Reunion professionnelle ]
A39: Pr Stéphane OUDARD | B39: Médecin | C39: BRISTOL-MYERS SQUIBB | D39: 10/03/2014 | E39: 14/03/2014 - | F39: Autre : Autre : [Consultant (HCP)]
A40: Pr Stéphane OUDARD | B40: Médecin | C40: JANSSEN-CILAG | D40: 20/03/2014 | E40: 20/03/2014 - 20/03/2014 | F40: Autre : CONGRES / SYMPOSIUM
A41: Pr Stéphane OUDARD | B41: Médecin | C41: SANOFI AVENTIS FRANCE | D41: 20/03/2014 | E41: 20/03/2014 - 01/06/2015 | F41: Autre : Autre : [Communication scientifique]
A42: Pr Stéphane OUDARD | B42: Médecin | C42: SANOFI AVENTIS FRANCE | D42: 21/03/2014 | E42: 21/03/2014 - 17/05/2014 | F42: Autre : Autre : [Communication scientifique]
A43: Pr Stéphane OUDARD | B43: Médecin | C43: PFIZER SAS | D43: 21/03/2014 | E43: 21/03/2014 - 21/03/2014 | F43: Autre : ORATEUR RP/CONGRES/SYMPOSIUM
A44: Pr Stéphane OUDARD | B44: Médecin | C44: ARIAD Pharmaceuticals (France) | D44: 26/03/2014 | E44: 26/03/2014 - 26/03/2014 | F44: Autre : ORATEUR SYMPOSIUM ARIAD SFH
A45: Pr Stéphane OUDARD | B45: Médecin | C45: SANOFI AVENTIS FRANCE | D45: 28/03/2014 | E45: 28/03/2014 - 30/03/2014 | F45: Autre : Autre : [Opération SA/Journée-Soirée]
A46: Pr Stéphane OUDARD | B46: Médecin | C46: SANOFI AVENTIS FRANCE | D46: 28/03/2014 | E46: 28/03/2014 - 30/03/2014 | F46: Hospitalité
A47: Pr Stéphane OUDARD | B47: Médecin | C47: SANOFI AVENTIS FRANCE | D47: 01/04/2014 | E47: 01/04/2014 - 30/06/2015 | F47: Autre : Autre : [Communication scientifique]
A48: Pr Stéphane OUDARD | B48: Médecin | C48: PFIZER SAS | D48: 17/04/2014 | E48: 21/03/2014 - 22/03/2014 | F48: Autre : Conseil | H48: REIMS
A49: Pr Stéphane OUDARD | B49: Médecin | C49: LABORATOIRE GLAXOSMITHKLINE | D49: 14/05/2014 | E49: 14/05/2014 - | F49: Autre : AUTRE : [CONVENTION HOSPITALITE]
A50: Pr Stéphane OUDARD | B50: Médecin | C50: SANOFI AVENTIS FRANCE | D50: 16/05/2014 | E50: 16/05/2014 - 17/05/2014 | F50: Autre : Autre : [Opération SA/Journée-Soirée] | H50: LE TOUQUET
A51: Pr Stéphane OUDARD | B51: Médecin | C51: SANOFI AVENTIS FRANCE | D51: 16/05/2014 | E51: 16/05/2014 - 17/05/2014 | F51: Hospitalité | H51: LE TOUQUET
A52: Pr Stéphane OUDARD | B52: Médecin | C52: LABORATOIRE GLAXOSMITHKLINE | D52: 22/05/2014 | E52: 22/05/2014 - 22/05/2014 | F52: Autre : Autre : [Convention d'Hospitalité]
A53: Pr Stéphane OUDARD | B53: Médecin | C53: NOVARTIS PHARMA SAS | D53: 29/05/2014 | E53: 29/05/2014 - 03/06/2014 | F53: Autre : Autre : [Hospitalité Evenement] | H53: CHICAGO
A54: Pr Stéphane OUDARD | B54: Médecin | C54: SANOFI AVENTIS FRANCE | D54: 30/05/2014 | E54: 30/05/2014 - 03/06/2014 | F54: Autre : Congrès / Symposium | H54: CHICAGO
A55: Pr Stéphane OUDARD | B55: Médecin | C55: SANOFI AVENTIS FRANCE | D55: 20/06/2014 | E55: 20/06/2014 - 21/06/2014 | F55: Autre : Autre : [Opération SA/Journée-Soirée]
A56: Pr Stéphane OUDARD | B56: Médecin | C56: SANOFI AVENTIS FRANCE | D56: 20/06/2014 | E56: 20/06/2014 - 21/06/2014 | F56: Hospitalité
A57: Pr Stéphane OUDARD | B57: Médecin | C57: Covance Clinical And Periapproval Services SARL | D57: 27/06/2014 | E57: 01/02/2014 - 17/11/2017 | F57: Recherche scientifique
A58: Pr Stéphane OUDARD | B58: Médecin | C58: PFIZER SAS | D58: 01/07/2014 | E58: 01/07/2014 - | F58: Autre : ORATEUR RP/CONGRES/SYMPOSIUM
A59: Pr Stéphane OUDARD | B59: Médecin | C59: M3 Global Research Ltd | D59: 23/07/2014 | E59: 23/07/2014 - | F59: Autre : Marketing
A60: Pr Stéphane OUDARD | B60: Médecin | C60: SANOFI-AVENTIS GROUPE | D60: 25/07/2014 | E60: 31/05/2014 - | F60: Autre : Autre : [Communication scientifique]
A61: Pr Stéphane OUDARD | B61: Médecin | C61: BRISTOL-MYERS SQUIBB | D61: 08/09/2014 | E61: 30/09/2014 - | F61: Autre : Autre : [Consultant (HCP)]
A62: Pr Stéphane OUDARD | B62: Médecin | C62: SANOFI AVENTIS FRANCE | D62: 18/09/2014 | E62: 18/09/2014 - 20/09/2014 | F62: Inscription congrès | H62: NICE
A63: Pr Stéphane OUDARD | B63: Médecin | C63: JANSSEN-CILAG | D63: 22/09/2014 | E63: 03/10/2014 - 03/10/2014 | F63: Autre : CONSEIL
A64: Pr Stéphane OUDARD | B64: Médecin | C64: Bayer HealthCare SAS | D64: 22/09/2014 | E64: 22/09/2014 - 31/12/2016 | F64: Autre : Contrat de recherche interventionnelle et non-interventionnelle
A65: Pr Stéphane OUDARD | B65: Médecin | C65: KEPHREN | D65: 23/09/2014 | E65: 19/01/2014 - 19/01/2014 | F65: Inscription congrès | H65: NICE
A66: Pr Stéphane OUDARD | B66: Médecin | C66: PFIZER SAS | D66: 26/09/2014 | E66: 26/09/2014 - 30/09/2014 | F66: Inscription congrès | H66: MADRID
A67: Pr Stéphane OUDARD | B67: Médecin | C67: PRA | D67: 28/10/2014 | E67: 28/10/2014 - | F67: Recherche scientifique
A68: Pr Stéphane OUDARD | B68: Médecin | C68: ROCHE SAS | D68: 30/10/2014 | E68: 30/10/2014 - 30/10/2014 | F68: Autre : Autre : [ Réunion professionnelle ]
A69: Pr Stéphane OUDARD | B69: Médecin | C69: Takeda France | D69: 19/11/2014 | E69: 19/11/2014 - 19/11/2014 | F69: Autre : Autre : [CONVENTION D'HOSPITALITE]
A70: Pr Stéphane OUDARD | B70: Médecin | C70: SANOFI-AVENTIS GROUPE | D70: 20/11/2014 | E70: 20/11/2014 - | F70: Contrat d'intervenant à une manifestation / orateur
A71: Pr Stéphane OUDARD | B71: Médecin | C71: JANSSEN-CILAG | D71: 09/12/2014 | E71: 09/12/2014 - 09/12/2014 | F71: Autre : CONSEIL
A72: Pr Stéphane OUDARD | B72: Médecin | C72: NOVARTIS PHARMA SAS | D72: 11/12/2014 | E72: 11/12/2014 - 12/12/2014 | F72: Autre : Autre : [Orateur]
A73: Pr Stéphane OUDARD | B73: Médecin | C73: INC RESEARCH, LLC | D73: 22/12/2014 | E73: 22/12/2014 - | F73: Recherche scientifique
A74: Pr Stéphane OUDARD | B74: Médecin | C74: B3TSI | D74: 07/01/2015 | E74: 07/01/2015 - | F74: Autre : autre : enquête téléphonique
A75: Pr Stéphane OUDARD | B75: Médecin | C75: SANOFI-AVENTIS GROUPE | D75: 23/01/2015 | E75: 12/02/2015 - 27/02/2015 | F75: Autre : Autre : [Communication scientifique]
A76: Pr Stéphane OUDARD | B76: Médecin | C76: SANOFI-AVENTIS GROUPE | D76: 23/01/2015 | E76: 10/02/2015 - 27/02/2015 | F76: Autre : Autre : [Communication scientifique]
A77: Pr Stéphane OUDARD | B77: Médecin | C77: JANSSEN-CILAG | D77: 05/02/2015 | E77: 05/02/2015 - 06/02/2015 | F77: Autre : CONGRES / SYMPOSIUM
A78: Pr Stéphane OUDARD | B78: Médecin | C78: NOVARTIS PHARMA SAS | D78: 09/02/2015 | E78: 09/02/2015 - 20/03/2015 | F78: Autre : Autre : [Contrat de conseil & prestation]
A79: Pr Stéphane OUDARD | B79: Médecin | C79: SANOFI AVENTIS FRANCE | D79: 11/02/2015 | E79: 27/03/2015 - 31/12/2015 | F79: Autre : Autre : [Communication scientifique]
A80: Pr Stéphane OUDARD | B80: Médecin | C80: PIERRE FABRE MEDICAMENT | D80: 17/02/2015 | E80: 01/04/2015 - 31/03/2016 | F80: Autre : CONTRAT DE CONSULTANT
A81: Pr Stéphane OUDARD | B81: Médecin | C81: SANOFI-AVENTIS GROUPE | D81: 24/02/2015 | E81: 08/03/2015 - 31/03/2015 | F81: Autre : Autre : [Communication scientifique]
A82: Pr Stéphane OUDARD | B82: Médecin | C82: NOVARTIS PHARMA SAS | D82: 26/02/2015 | E82: 26/02/2015 - 01/03/2015 | F82: Autre : Autre : [Hospitalité Evenement] | H82: ORLANDO
A83: Pr Stéphane OUDARD | B83: Médecin | C83: JANSSEN-CILAG | D83: 28/02/2015 | E83: 28/02/2015 - 28/02/2015 | F83: Autre : CONSEIL | H83: ORLANDO
A84: Pr Stéphane OUDARD | B84: Médecin | C84: PIERRE FABRE MEDICAMENT | D84: 05/03/2015 | E84: 05/03/2015 - | F84: Autre : CONVENTION D'HOSPITALITE
A85: Pr Stéphane OUDARD | B85: Médecin | C85: SANOFI-AVENTIS GROUPE | D85: 05/03/2015 | E85: 19/03/2015 - 20/03/2015 | F85: Autre : Autre : [Communication scientifique]
A86: Pr Stéphane OUDARD | B86: Médecin | C86: SANOFI AVENTIS FRANCE | D86: 12/03/2015 | E86: 12/03/2015 - 12/03/2015 | F86: Hospitalité
A87: Pr Stéphane OUDARD | B87: Médecin | C87: PFIZER SAS | D87: 18/03/2015 | E87: 18/03/2015 - 18/03/2015 | F87: Autre : Conseil
A88: Pr Stéphane OUDARD | B88: Médecin | C88: TEVA SANTE SAS | D88: 26/03/2015 | E88: 26/03/2015 - 26/03/2015 | F88: Autre : Autre : Réunion scientifique
A89: Pr Stéphane OUDARD | B89: Médecin | C89: SANOFI AVENTIS FRANCE | D89: 27/03/2015 | E89: 27/03/2015 - 31/12/2015 | F89: Autre : Autre : [Communication scientifique]
A90: Pr Stéphane OUDARD | B90: Médecin | C90: Ipsos Mori UK Limited | D90: 02/04/2015 | E90: 02/04/2015 - | F90: Autre : [Marketing]
A91: Pr Stéphane OUDARD | B91: Médecin | C91: PFIZER SAS | D91: 09/04/2015 | E91: 18/05/2015 - 18/05/2015 | F91: Autre : Conseil
A92: Pr Stéphane OUDARD | B92: Médecin | C92: SANOFI AVENTIS FRANCE | D92: 10/04/2015 | E92: 10/04/2015 - 12/04/2015 | F92: Hospitalité
A93: Pr Stéphane OUDARD | B93: Médecin | C93: NOVARTIS PHARMA SAS | D93: 15/04/2015 | E93: 15/04/2015 - 28/05/2015 | F93: Autre : Autre : [Contrat de conseil & prestation]
A94: Pr Stéphane OUDARD | B94: Médecin | C94: SANOFI-AVENTIS GROUPE | D94: 23/04/2015 | E94: 30/04/2015 - 31/05/2015 | F94: Autre : Autre : [Communication scientifique]
A95: Pr Stéphane OUDARD | B95: Médecin | C95: PFIZER SAS | D95: 18/05/2015 | E95: 18/05/2015 - 18/05/2015 | F95: Autre : Autre : Reunion professionnelle ou scientifique
A96: Pr Stéphane OUDARD | B96: Médecin | C96: Bayer HealthCare SAS | D96: 19/05/2015 | E96: 24/06/2015 - 24/06/2015 | F96: Autre : Contrat de conseil scientifique | H96: LYON
A97: Pr Stéphane OUDARD | B97: Médecin | C97: SANOFI AVENTIS FRANCE | D97: 22/05/2015 | E97: 19/06/2015 - 20/06/2015 | F97: Autre : Autre : [Communication scientifique]
A98: Pr Stéphane OUDARD | B98: Médecin | C98: NOVARTIS PHARMA SAS | D98: 29/05/2015 | E98: 29/05/2015 - 02/06/2015 | F98: Autre : AUTRE : [HOSPITALITÉ EVENEMENT] | H98: CHICAGO
A99: Pr Stéphane OUDARD | B99: Médecin | C99: NOVARTIS PHARMA SAS | D99: 01/06/2015 | E99: 01/06/2015 - 31/12/2015 | F99: Autre : AUTRE : [CONTRAT DE CONSEIL & PRESTATION]
A100: Pr Stéphane OUDARD | B100: Médecin | C100: Elixo SAS | D100: 08/06/2015 | E100: 08/06/2015 - 08/06/2015 | F100: Autre : Autre : [entretien]
A101: Pr Stéphane OUDARD | B101: Médecin | C101: SANOFI AVENTIS FRANCE | D101: 19/06/2015 | E101: 19/06/2015 - 20/06/2015 | F101: Hospitalité
A102: Pr Stéphane OUDARD | B102: Médecin | C102: SANOFI-AVENTIS GROUPE | D102: 04/07/2015 | E102: 04/07/2015 - 04/07/2015 | F102: Autre : Autre : [Expertise]
A103: Pr Stéphane OUDARD | B103: Médecin | C103: WorldOne Group B.V. | D103: 14/07/2015 | E103: 14/07/2015 - | F103: Autre : AUTRE: [ETUDE DE MARCHE]
A104: Pr Stéphane OUDARD | B104: Médecin | C104: Health Advances | D104: 13/08/2015 | E104: 13/08/2015 - | F104: Autre : Autre: Phone consult
A105: Pr Stéphane OUDARD | B105: Médecin | C105: B3TSI | D105: 28/08/2015 | E105: 28/08/2015 - | F105: Autre : autre : enquête web
A106: Pr Stéphane OUDARD | B106: Médecin | C106: ROCHE SAS | D106: 31/08/2015 | E106: 30/10/2015 - | F106: Recherche scientifique
A107: Pr Stéphane OUDARD | B107: Médecin | C107: PFIZER SAS | D107: 31/08/2015 | E107: 05/10/2015 - 08/10/2015 | F107: Autre : Congrès / Symposium
A108: Pr Stéphane OUDARD | B108: Médecin | C108: NOVARTIS PHARMA SAS | D108: 31/08/2015 | E108: 31/08/2015 - 31/10/2015 | F108: Autre : AUTRE : [CONTRAT DE CONSEIL & PRESTATION]
A109: Pr Stéphane OUDARD | B109: Médecin | C109: JANSSEN-CILAG | D109: 03/09/2015 | E109: 03/09/2015 - 05/09/2015 | F109: Autre : CONGRES / SYMPOSIUM | H109: NICE
A110: Pr Stéphane OUDARD | B110: Médecin | C110: PIERRE FABRE MEDICAMENT | D110: 03/09/2015 | E110: 03/09/2015 - | F110: Autre : CONVENTION D'HOSPITALITE
A111: Pr Stéphane OUDARD | B111: Médecin | C111: QUINTILES BENEFIT FRANCE SNC | D111: 10/09/2015 | E111: 10/09/2015 - 10/09/2015 | F111: Autre : Recherche Clinique
A112: Pr Stéphane OUDARD | B112: Médecin | C112: PFIZER SAS | D112: 15/09/2015 | E112: 24/11/2015 - 24/11/2015 | F112: Autre : Congrès/Symposium | H112: SENS
A113: Pr Stéphane OUDARD | B113: Médecin | C113: FERRING SAS | D113: 19/09/2015 | E113: 19/09/2015 - 19/09/2015 | F113: Autre : Congrès / symposium | H113: ST-CYR-SUR-MER
A114: Pr Stéphane OUDARD | B114: Médecin | C114: Bayer HealthCare SAS | D114: 21/09/2015 | E114: 22/10/2015 - 22/10/2015 | F114: Autre : Contrat de conseil scientifique
A115: Pr Stéphane OUDARD | B115: Médecin | C115: BRISTOL-MYERS SQUIBB | D115: 22/09/2015 | E115: 22/10/2015 - | F115: Autre : Autre : [Consultant (HCP)]
A116: Pr Stéphane OUDARD | B116: Médecin | C116: BRISTOL-MYERS SQUIBB | D116: 22/09/2015 | E116: 22/10/2015 - | F116: Autre : Autre : [Consultant (HCP)]
A117: Pr Stéphane OUDARD | B117: Médecin | C117: PIERRE FABRE MEDICAMENT | D117: 13/10/2015 | E117: 13/10/2015 - | F117: Autre : CONVENTION D'HOSPITALITE
A118: Pr Stéphane OUDARD | B118: Médecin | C118: SANOFI AVENTIS FRANCE | D118: 23/10/2015 | E118: 23/10/2015 - 24/10/2015 | F118: Inscription congrès
A119: Pr Stéphane OUDARD | B119: Médecin | C119: B3TSI | D119: 27/10/2015 | E119: 27/10/2015 - | F119: Autre : autre : enquête web
A120: Pr Stéphane OUDARD | B120: Médecin | C120: SANOFI AVENTIS FRANCE | D120: 03/11/2015 | E120: 01/01/2016 - 30/06/2016 | F120: Contrat d'intervenant à une manifestation / orateur
A121: Pr Stéphane OUDARD | B121: Médecin | C121: SANOFI-AVENTIS GROUPE | D121: 04/11/2015 | E121: 26/11/2015 - 27/11/2015 | F121: Contrat d'expert scientifique, contrat dans le cadre d'une recherche, contrat de consultant
A122: Pr Stéphane OUDARD | B122: Médecin | C122: SANOFI-AVENTIS GROUPE | D122: 12/11/2015 | E122: 12/11/2015 - 30/11/2015 | F122: Autre : Autre : [Expertise]
A123: Pr Stéphane OUDARD | B123: Médecin | C123: KEPHREN | D123: 17/11/2015 | E123: 17/11/2015 - 16/03/2016 | F123: Autre : CONSEIL
A124: Pr Stéphane OUDARD | B124: Médecin | C124: PFIZER SAS | D124: 24/11/2015 | E124: 24/11/2015 - 24/11/2015 | F124: Autre : Autre : Réunion professionnelle ou scientifique | H124: SENS
A125: Pr Stéphane OUDARD | B125: Médecin | C125: SANOFI AVENTIS FRANCE | D125: 04/12/2015 | E125: 04/12/2015 - 31/12/2015 | F125: Autre : Autre : [Communication scientifique]
A126: Pr Stéphane OUDARD | B126: Médecin | C126: NOVARTIS PHARMA SAS | D126: 10/12/2015 | E126: 10/12/2015 - 10/12/2015 | F126: Autre : AUTRE : [CONTRAT DE CONSEIL & PRESTATION]
A127: Pr Stéphane OUDARD | B127: Médecin | C127: SANOFI-AVENTIS GROUPE | D127: 15/12/2015 | E127: 15/12/2015 - 15/12/2015 | F127: Autre : Autre : [Expertise]
A128: Pr Stéphane OUDARD | B128: Médecin | C128: JANSSEN-CILAG | D128: 22/12/2015 | E128: 03/02/2016 - 03/02/2016 | F128: Autre : CONGRES / SYMPOSIUM | H128: MONACO
A129: Pr Stéphane OUDARD | B129: Médecin | C129: JANSSEN-CILAG | D129: 22/12/2015 | E129: 03/02/2016 - 03/02/2016 | F129: Autre : CONGRES / SYMPOSIUM | H129: MONACO
A130: Pr Stéphane OUDARD | B130: Médecin | C130: BRISTOL-MYERS SQUIBB | D130: 28/12/2015 | E130: 08/01/2016 - | F130: Autre : Autre : [Consultant (HCP)]
A131: Pr Stéphane OUDARD | B131: Médecin | C131: BRISTOL-MYERS SQUIBB | D131: 28/12/2015 | E131: 08/01/2016 - | F131: Autre : Autre : [Consultant (HCP)]
A132: Pr Stéphane OUDARD | B132: Médecin | C132: SANOFI AVENTIS FRANCE | D132: 29/12/2015 | E132: 19/02/2016 - 31/12/2016 | F132: Contrat d'expert scientifique, contrat dans le cadre d'une recherche, contrat de consultant
A133: Pr Stéphane OUDARD | B133: Médecin | C133: NOVARTIS PHARMA SAS | D133: 07/01/2016 | E133: 07/01/2016 - 09/01/2016 | F133: Autre : AUTRE : [CONTRAT DE CONSEIL & PRESTATION]
A134: Pr Stéphane OUDARD | B134: Médecin | C134: SANOFI-AVENTIS GROUPE | D134: 12/01/2016 | E134: 04/03/2016 - 05/03/2016 | F134: Autre : Autre : [Communication scientifique]
A135: Pr Stéphane OUDARD | B135: Médecin | C135: KeyQuest Health Ltd. | D135: 18/01/2016 | E135: 14/01/2016 - | F135: Autre : [MARKETING]
A136: Pr Stéphane OUDARD | B136: Médecin | C136: NOVARTIS PHARMA SAS | D136: 21/01/2016 | E136: 21/01/2016 - 22/01/2016 | F136: Autre : AUTRE : [ORATEUR]
A137: Pr Stéphane OUDARD | B137: Médecin | C137: Serial Creative | D137: 25/01/2016 | E137: 25/01/2016 - 25/06/2016 | F137: Autre : conseil et interview
A138: Pr Stéphane OUDARD | B138: Médecin | C138: JANSSEN-CILAG | D138: 03/02/2016 | E138: 03/02/2016 - 03/02/2016 | F138: Autre : CONGRES / SYMPOSIUM
A139: Pr Stéphane OUDARD | B139: Médecin | C139: JANSSEN-CILAG | D139: 03/02/2016 | E139: 03/02/2016 - 03/02/2016 | F139: Autre : CONGRES/SYMPOSIUM | H139: MONACO
A140: Pr Stéphane OUDARD | B140: Médecin | C140: PFIZER SAS | D140: 05/02/2016 | E140: 16/02/2016 - 16/02/2016 | F140: Autre : Congrès / Symposium
A141: Pr Stéphane OUDARD | B141: Médecin | C141: PFIZER SAS | D141: 16/02/2016 | E141: 16/02/2016 - 16/02/2016 | F141: Autre : Autre : Réunion professionnelle ou scientifique
A142: Pr Stéphane OUDARD | B142: Médecin | C142: SANOFI AVENTIS FRANCE | D142: 18/02/2016 | E142: 08/04/2016 - 10/04/2016 | F142: Autre : Autre : [Communication scientifique]
A143: Pr Stéphane OUDARD | B143: Médecin | C143: Kantar Health | D143: 19/02/2016 | E143: 15/02/2016 - 15/02/2016 | F143: Autre : [MARKETING]
A144: Pr Stéphane OUDARD | B144: Médecin | C144: Simon-Kucher & Partners | D144: 24/02/2016 | E144: 24/02/2016 - | F144: Autre : AUTRE: COLLABORATION POUR UNE ETUDE DE MARCHÉ
A145: Pr Stéphane OUDARD | B145: Médecin | C145: Bayer HealthCare SAS | D145: 27/02/2016 | E145: 14/03/2016 - | F145: Contrat d'expert scientifique, contrat dans le cadre d'une recherche, contrat de consultant
A146: Pr Stéphane OUDARD | B146: Médecin | C146: SANDOZ | D146: 29/02/2016 | E146: 29/02/2016 - 29/02/2016 | F146: Hospitalité
A147: Pr Stéphane OUDARD | B147: Médecin | C147: SANOFI AVENTIS FRANCE | D147: 21/03/2016 | E147: 01/04/2016 - 30/12/2017 | F147: Autre : Autre : [Communication scientifique]
A148: Pr Stéphane OUDARD | B148: Médecin | C148: SANOFI-AVENTIS GROUPE | D148: 23/03/2016 | E148: 01/04/2016 - 30/04/2016 | F148: Autre : Autre : [Communication scientifique]
A149: Pr Stéphane OUDARD | B149: Médecin | C149: NOVARTIS PHARMA SAS | D149: 29/03/2016 | E149: 29/03/2016 - 28/03/2017 | F149: Autre : AUTRE : [CONTRAT DE CONSEIL & PRESTATION]
A150: Pr Stéphane OUDARD | B150: Médecin | C150: SANOFI AVENTIS FRANCE | D150: 29/03/2016 | E150: 29/03/2016 - 29/03/2016 | F150: Autre : Autre : [Réunion]
A151: Pr Stéphane OUDARD | B151: Médecin | C151: SANOFI-AVENTIS GROUPE | D151: 04/04/2016 | E151: 14/04/2016 - 15/04/2016 | F151: Autre : Autre : [Communication scientifique]
A152: Pr Stéphane OUDARD | B152: Médecin | C152: SANOFI AVENTIS FRANCE | D152: 08/04/2016 | E152: 08/04/2016 - 10/04/2016 | F152: Autre : Autre : [Opération SA/Journée-Soirée]
A153: Pr Stéphane OUDARD | B153: Médecin | C153: JANSSEN-CILAG | D153: 20/04/2016 | E153: 21/05/2016 - 22/05/2016 | F153: Contrat d'intervenant à une manifestation / orateur | G153: 850
A154: Pr Stéphane OUDARD | B154: Médecin | C154: Takeda France | D154: 28/04/2016 | E154: 01/06/2016 - 31/03/2018 | F154: Autre : Autre : [Convention de consultant]
A155: Pr Stéphane OUDARD | B155: Médecin | C155: SANOFI AVENTIS FRANCE | D155: 09/05/2016 | E155: 15/06/2016 - 30/06/2016 | F155: Autre : Autre : [Communication scientifique]
A156: Pr Stéphane OUDARD | B156: Médecin | C156: SANOFI AVENTIS FRANCE | D156: 09/05/2016 | E156: 17/06/2016 - 18/06/2016 | F156: Autre : Autre : [Communication scientifique]
A157: Pr Stéphane OUDARD | B157: Médecin | C157: SANOFI-AVENTIS GROUPE | D157: 13/05/2016 | E157: 22/06/2016 - 23/06/2016 | F157: Autre : Autre : [Communication scientifique]
A158: Pr Stéphane OUDARD | B158: Médecin | C158: SANOFI AVENTIS FRANCE | D158: 19/05/2016 | E158: 19/05/2016 - 31/12/2016 | F158: Autre : Autre : [Communication scientifique]
A159: Pr Stéphane OUDARD | B159: Médecin | C159: JANSSEN-CILAG | D159: 21/05/2016 | E159: 21/05/2016 - 21/05/2016 | F159: Autre : CONGRES / SYMPOSIUM
A160: Pr Stéphane OUDARD | B160: Médecin | C160: JANSSEN-CILAG | D160: 21/05/2016 | E160: 21/05/2016 - 21/05/2016 | F160: Autre : CONGRES/SYMPOSIUM
A161: Pr Stéphane OUDARD | B161: Médecin | C161: NOVARTIS PHARMA SAS | D161: 02/06/2016 | E161: 02/06/2016 - 02/06/2016 | F161: Autre : AUTRE : [CONTRAT DE CONSEIL & PRESTATION]
A162: Pr Stéphane OUDARD | B162: Médecin | C162: NOVARTIS PHARMA SAS | D162: 03/06/2016 | E162: 03/06/2016 - 07/06/2016 | F162: Autre : AUTRE : [HOSPITALITÉ EVENEMENT] | H162: CHICAGO
A163: Pr Stéphane OUDARD | B163: Médecin | C163: PFIZER SAS | D163: 15/06/2016 | E163: 28/06/2016 - 29/06/2016 | F163: Autre : Conseil
A164: Pr Stéphane OUDARD | B164: Médecin | C164: SANOFI AVENTIS FRANCE | D164: 17/06/2016 | E164: 17/06/2016 - 18/06/2016 | F164: Hospitalité
A165: Pr Stéphane OUDARD | B165: Médecin | C165: SANOFI-AVENTIS GROUPE | D165: 16/07/2016 | E165: 22/09/2016 - 22/09/2016 | F165: Autre : Autre : [Communication scientifique]
A166: Pr Stéphane OUDARD | B166: Médecin | C166: PFIZER SAS | D166: 17/07/2016 | E166: 29/08/2016 - 28/08/2017 | F166: Autre : Conseil
A167: Pr Stéphane OUDARD | B167: Médecin | C167: WorldOne Group B.V. | D167: 20/07/2016 | E167: 20/07/2016 - | F167: Autre : [ETUDE DE MARCHE]
A168: Pr Stéphane OUDARD | B168: Médecin | C168: WorldOne Group B.V. | D168: 20/07/2016 | E168: 20/07/2016 - | F168: Autre : AUTRE: [ETUDE DE MARCHE]
A169: Pr Stéphane OUDARD | B169: Médecin | C169: BRISTOL-MYERS SQUIBB | D169: 22/07/2016 | E169: 06/09/2016 - | F169: Autre : Autre : [Orateur]
A170: Pr Stéphane OUDARD | B170: Médecin | C170: BRISTOL-MYERS SQUIBB | D170: 22/07/2016 | E170: 06/09/2016 - | F170: Autre : Autre : [Orateur]
A171: Pr Stéphane OUDARD | B171: Médecin | C171: BRISTOL-MYERS SQUIBB | D171: 22/07/2016 | E171: 06/09/2016 - | F171: Autre : Autre : [Orateur]
A172: Pr Stéphane OUDARD | B172: Médecin | C172: SANOFI-AVENTIS GROUPE | D172: 26/07/2016 | E172: 07/07/2016 - 09/07/2016 | F172: Autre : Autre : [Communication scientifique]
A173: Pr Stéphane OUDARD | B173: Médecin | C173: WorldOne Group B.V. | D173: 30/07/2016 | E173: 30/07/2016 - | F173: Autre : AUTRE: [ETUDE DE MARCHE]
A174: Pr Stéphane OUDARD | B174: Médecin | C174: WorldOne Group B.V. | D174: 30/07/2016 | E174: 30/07/2016 - | F174: Autre : [ETUDE DE MARCHE]
A175: Pr Stéphane OUDARD | B175: Médecin | C175: EISAI SAS | D175: 16/08/2016 | E175: 01/09/2016 - 31/12/2016 | F175: Autre : CONSEIL / PRESTATION
A176: Pr Stéphane OUDARD | B176: Médecin | C176: SANOFI-AVENTIS GROUPE | D176: 30/08/2016 | E176: 01/09/2016 - 02/09/2016 | F176: Autre : Autre : [Communication scientifique]
A177: Pr Stéphane OUDARD | B177: Médecin | C177: PRA | D177: 01/09/2016 | E177: 01/09/2016 - | F177: Recherche scientifique
A178: Pr Stéphane OUDARD | B178: Médecin | C178: SANOFI-AVENTIS GROUPE | D178: 08/09/2016 | E178: 08/10/2016 - 30/10/2016 | F178: Autre : Autre : [Communication scientifique]
A179: Pr Stéphane OUDARD | B179: Médecin | C179: JANSSEN-CILAG | D179: 15/09/2016 | E179: 15/09/2016 - 15/09/2016 | F179: Autre : CONGRES/SYMPOSIUM | H179: NICE
A180: Pr Stéphane OUDARD | B180: Médecin | C180: FERRING SAS | D180: 15/09/2016 | E180: 15/09/2016 - 17/09/2016 | F180: Autre : Congrès / symposium | H180: NICE
A181: Pr Stéphane OUDARD | B181: Médecin | C181: Association pour le Développement de l’Enseignement et des Recherches auprès des universités des centres de recherches et des entreprises d’Aquitaine (ADERA) | D181: 22/09/2016 | E181: 22/09/2016 - | F181: Autre : RECHERCHE-ETUDE FUJI
A182: Pr Stéphane OUDARD | B182: Médecin | C182: SANOFI-AVENTIS GROUPE | D182: 05/10/2016 | E182: 14/10/2016 - 30/10/2016 | F182: Autre : Autre : [Communication scientifique]
A183: Pr Stéphane OUDARD | B183: Médecin | C183: PIERRE FABRE MEDICAMENT | D183: 13/10/2016 | E183: 13/10/2016 - | F183: Autre : CONVENTION D'HOSPITALITE
A184: Pr Stéphane OUDARD | B184: Médecin | C184: PPD FRANCE SAS | D184: 14/10/2016 | E184: 16/05/2014 - 31/12/2019 | F184: Recherche scientifique
A185: Pr Stéphane OUDARD | B185: Médecin | C185: SANOFI AVENTIS FRANCE | D185: 19/10/2016 | E185: 02/12/2016 - 03/12/2016 | F185: Autre : Autre : [Communication scientifique]
A186: Pr Stéphane OUDARD | B186: Médecin | C186: AMGEN SAS | D186: 20/10/2016 | E186: 17/11/2016 - 18/11/2016 | F186: Autre : AUTRE [CONTRAT D ORATEUR]
A187: Pr Stéphane OUDARD | B187: Médecin | C187: NOVARTIS PHARMA SAS | D187: 27/10/2016 | E187: 27/10/2016 - 26/10/2017 | F187: Autre : AUTRE : [CONTRAT DE CONSEIL & PRESTATION]
A188: Pr Stéphane OUDARD | B188: Médecin | C188: EUSA Pharma (France) SAS | D188: 29/10/2016 | E188: 29/10/2016 - 29/10/2016 | F188: Autre : HONORAIRES
A189: Pr Stéphane OUDARD | B189: Médecin | C189: NOVARTIS PHARMA SAS | D189: 02/11/2016 | E189: 02/11/2016 - 23/03/2017 | F189: Contrat d'expert scientifique, contrat dans le cadre d'une recherche, contrat de consultant | G189: 1000
A190: Pr Stéphane OUDARD | B190: Médecin | C190: Simon-Kucher & Partners | D190: 17/11/2016 | E190: 18/11/2016 - | F190: Contrat d'interview
A191: Pr Stéphane OUDARD | B191: Médecin | C191: ASTELLAS PHARMA | D191: 18/11/2016 | E191: 09/12/2016 - 10/12/2016 | F191: Hospitalité
A192: Pr Stéphane OUDARD | B192: Médecin | C192: BRISTOL-MYERS SQUIBB | D192: 30/11/2016 | E192: 30/11/2016 - | F192: Autre : Consultant (HCP)
A193: Pr Stéphane OUDARD | B193: Médecin | C193: PFIZER SAS | D193: 01/12/2016 | E193: 04/12/2016 - 15/12/2016 | F193: Formation
A194: Pr Stéphane OUDARD | B194: Médecin | C194: SANOFI AVENTIS FRANCE | D194: 02/12/2016 | E194: 02/12/2016 - 03/12/2016 | F194: Hospitalité | H194: MONTPELLIER
A195: Pr Stéphane OUDARD | B195: Médecin | C195: BRISTOL-MYERS SQUIBB | D195: 02/12/2016 | E195: 15/11/2016 - | F195: Autre : Consultant (HCP)
A196: Pr Stéphane OUDARD | B196: Médecin | C196: Simon-Kucher & Partners | D196: 06/12/2016 | E196: 12/12/2016 - | F196: Contrat d'interview
A197: Pr Stéphane OUDARD | B197: Médecin | C197: NOVARTIS PHARMA SAS | D197: 07/12/2016 | E197: 07/12/2016 - 07/12/2016 | F197: Autre : AUTRE : [CONTRAT DE CONSEIL & PRESTATION]
A198: Pr Stéphane OUDARD | B198: Médecin | C198: JANSSEN-CILAG | D198: 23/12/2016 | E198: 23/12/2016 - 31/05/2020 | F198: Recherche scientifique
A199: Pr Stéphane OUDARD | B199: Médecin | C199: STETHOS | D199: 01/01/2017 | E199: 01/01/2017 - 31/01/2017 | F199: Autre : MARKETING
A200: Pr Stéphane OUDARD | B200: Médecin | C200: ASTRAZENECA | D200: 05/01/2017 | E200: 05/01/2017 - | F200: Hospitalité | G200: 16
... 96 more rows

Sheet Rémunérations
A1: Entreprise | B1: Type de bénéficiaire | C1: Bénéficiaire | D1: Date | E1: Montant
A2: SANOFI AVENTIS FRANCE | B2: Médecin | C2: Pr Stéphane OUDARD | D2: 18/03/2013 | E2: 3000
A3: SANOFI AVENTIS FRANCE | B3: Médecin | C3: Pr Stéphane OUDARD | D3: 13/05/2013 | E3: 2000
A4: SANOFI AVENTIS FRANCE | B4: Médecin | C4: Pr Stéphane OUDARD | D4: 24/05/2013 | E4: 48
A5: SANOFI AVENTIS FRANCE | B5: Médecin | C5: Pr Stéphane OUDARD | D5: 30/05/2013 | E5: 900
A6: SANOFI-AVENTIS GROUPE | B6: Médecin | C6: Pr Stéphane OUDARD | D6: 2013-06-10 | E6: 2000
A7: SANOFI AVENTIS FRANCE | B7: Médecin | C7: Pr Stéphane OUDARD | D7: 2013-07-01 | E7: 1000
A8: SANOFI AVENTIS FRANCE | B8: Médecin | C8: Pr Stéphane OUDARD | D8: 2013-10-07 | E8: 2000
A9: JANSSEN-CILAG | B9: Médecin | C9: Pr Stéphane OUDARD | D9: 19/02/2014 | E9: 300
A10: Bayer HealthCare SAS | B10: Médecin | C10: Pr Stéphane OUDARD | D10: 21/02/2014 | E10: 68
A11: Bayer HealthCare SAS | B11: Médecin | C11: Pr Stéphane OUDARD | D11: 21/02/2014 | E11: 1000
A12: SANOFI AVENTIS FRANCE | B12: Médecin | C12: Pr Stéphane OUDARD | D12: 2014-07-10 | E12: 1000
A13: SANOFI AVENTIS FRANCE | B13: Médecin | C13: Pr Stéphane OUDARD | D13: 2014-07-10 | E13: 2750
A14: SANOFI AVENTIS FRANCE | B14: Médecin | C14: Pr Stéphane OUDARD | D14: 2014-08-07 | E14: 1350
A15: SANOFI AVENTIS FRANCE | B15: Médecin | C15: Pr Stéphane OUDARD | D15: 23/10/2014 | E15: 1500
A16: JANSSEN-CILAG | B16: Médecin | C16: Pr Stéphane OUDARD | D16: 2014-11-06 | E16: 1320
A17: SANOFI AVENTIS FRANCE | B17: Médecin | C17: Pr Stéphane OUDARD | D17: 2014-12-02 | E17: 3000
A18: Bayer HealthCare SAS | B18: Médecin | C18: Pr Stéphane OUDARD | D18: 28/01/2015 | E18: 1000
A19: JANSSEN-CILAG | B19: Médecin | C19: Pr Stéphane OUDARD | D19: 19/02/2015 | E19: 1850
A20: SANOFI-AVENTIS GROUPE | B20: Médecin | C20: Pr Stéphane OUDARD | D20: 24/02/2015 | E20: 1800
A21: JANSSEN-CILAG | B21: Médecin | C21: Pr Stéphane OUDARD | D21: 13/03/2015 | E21: 650
A22: SANOFI-AVENTIS GROUPE | B22: Médecin | C22: Pr Stéphane OUDARD | D22: 17/03/2015 | E22: 4800
A23: SANOFI-AVENTIS GROUPE | B23: Médecin | C23: Pr Stéphane OUDARD | D23: 17/03/2015 | E23: 1200
A24: SANOFI-AVENTIS GROUPE | B24: Médecin | C24: Pr Stéphane OUDARD | D24: 2015-05-05 | E24: 1773
A25: SANOFI-AVENTIS GROUPE | B25: Médecin | C25: Pr Stéphane OUDARD | D25: 2015-05-05 | E25: 3300
A26: SANOFI AVENTIS FRANCE | B26: Médecin | C26: Pr Stéphane OUDARD | D26: 2015-05-06 | E26: 1500
A27: SANOFI-AVENTIS GROUPE | B27: Médecin | C27: Pr Stéphane OUDARD | D27: 2015-07-01 | E27: 4774
A28: SANOFI AVENTIS FRANCE | B28: Médecin | C28: Pr Stéphane OUDARD | D28: 2015-07-09 | E28: 1500
A29: SANOFI-AVENTIS GROUPE | B29: Médecin | C29: Pr Stéphane OUDARD | D29: 2015-08-04 | E29: 2400
A30: SANOFI AVENTIS FRANCE | B30: Médecin | C30: Pr Stéphane OUDARD | D30: 2015-09-10 | E30: 900
A31: Bayer HealthCare SAS | B31: Médecin | C31: Pr Stéphane OUDARD | D31: 25/11/2015 | E31: 1000
A32: SANOFI-AVENTIS GROUPE | B32: Médecin | C32: Pr Stéphane OUDARD | D32: 22/12/2015 | E32: 1910
A33: SANOFI AVENTIS FRANCE | B33: Médecin | C33: Pr Stéphane OUDARD | D33: 23/12/2015 | E33: 3000
A34: SANOFI-AVENTIS GROUPE | B34: Médecin | C34: Pr Stéphane OUDARD | D34: 2016-01-05 | E34: 2700
A35: PFIZER SAS | B35: Médecin | C35: Pr Stéphane OUDARD | D35: 26/01/2016 | E35: 900
A36: SANOFI-AVENTIS GROUPE | B36: Médecin | C36: Pr Stéphane OUDARD | D36: 16/02/2016 | E36: 4168
A37: SANOFI AVENTIS FRANCE | B37: Médecin | C37: Pr Stéphane OUDARD | D37: 18/02/2016 | E37: 1500
A38: JANSSEN-CILAG | B38: Médecin | C38: Pr Stéphane OUDARD | D38: 2016-03-09 | E38: 1200
A39: NOVARTIS PHARMA SAS | B39: Médecin | C39: Pr Stéphane OUDARD | D39: 22/03/2016 | E39: 600
A40: NOVARTIS PHARMA SAS | B40: Médecin | C40: Pr Stéphane OUDARD | D40: 24/03/2016 | E40: 1200
A41: SANOFI AVENTIS FRANCE | B41: Médecin | C41: Pr Stéphane OUDARD | D41: 24/03/2016 | E41: 1500
A42: PFIZER SAS | B42: Médecin | C42: Pr Stéphane OUDARD | D42: 2016-04-05 | E42: 900
A43: SANOFI-AVENTIS GROUPE | B43: Médecin | C43: Pr Stéphane OUDARD | D43: 19/04/2016 | E43: 2961
A44: SANOFI-AVENTIS GROUPE | B44: Médecin | C44: Pr Stéphane OUDARD | D44: 24/05/2016 | E44: 2371
A45: JANSSEN-CILAG | B45: Médecin | C45: Pr Stéphane OUDARD | D45: 2016-06-08 | E45: 850
A46: SANOFI AVENTIS FRANCE | B46: Médecin | C46: Pr Stéphane OUDARD | D46: 16/06/2016 | E46: 1500
A47: NOVARTIS PHARMA SAS | B47: Médecin | C47: Pr Stéphane OUDARD | D47: 27/06/2016 | E47: 800
A48: SANOFI AVENTIS FRANCE | B48: Médecin | C48: Pr Stéphane OUDARD | D48: 2016-08-04 | E48: 1950
A49: SANOFI AVENTIS FRANCE | B49: Médecin | C49: Pr Stéphane OUDARD | D49: 25/08/2016 | E49: 2400
A50: EISAI SAS | B50: Médecin | C50: Pr Stéphane OUDARD | D50: 2016-09-01 | E50: 1500
A51: SANOFI AVENTIS FRANCE | B51: Médecin | C51: Pr Stéphane OUDARD | D51: 15/09/2016 | E51: 3000
A52: SANOFI-AVENTIS GROUPE | B52: Médecin | C52: Pr Stéphane OUDARD | D52: 2016-10-11 | E52: 2393
A53: SANOFI-AVENTIS GROUPE | B53: Médecin | C53: Pr Stéphane OUDARD | D53: 2016-10-11 | E53: 3600
A54: SANOFI-AVENTIS GROUPE | B54: Médecin | C54: Pr Stéphane OUDARD | D54: 18/10/2016 | E54: 6500
A55: PFIZER SAS | B55: Médecin | C55: Pr Stéphane OUDARD | D55: 25/10/2016 | E55: 240
A56: EUSA Pharma (France) SAS | B56: Médecin | C56: Pr Stéphane OUDARD | D56: 29/10/2016 | E56: 200
A57: SANOFI-AVENTIS GROUPE | B57: Médecin | C57: Pr Stéphane OUDARD | D57: 2016-11-04 | E57: 2369
A58: ASTELLAS PHARMA | B58: Médecin | C58: Pr Stéphane OUDARD | D58: 2016-12-09 | E58: 1680
A59: SANOFI AVENTIS FRANCE | B59: Médecin | C59: Pr Stéphane OUDARD | D59: 28/12/2016 | E59: 3000
A60: SANOFI AVENTIS FRANCE | B60: Médecin | C60: Pr Stéphane OUDARD | D60: 2017-01-05 | E60: 1158
A61: SANOFI-AVENTIS GROUPE | B61: Médecin | C61: Pr Stéphane OUDARD | D61: 2017-01-10 | E61: 1350
A62: PFIZER SAS | B62: Médecin | C62: Pr Stéphane OUDARD | D62: 2017-02-07 | E62: 1000
A63: NOVARTIS PHARMA SAS | B63: Médecin | C63: Pr Stéphane OUDARD | D63: 14/02/2017 | E63: 600
A64: SANOFI-AVENTIS GROUPE | B64: Médecin | C64: Pr Stéphane OUDARD | D64: 14/02/2017 | E64: 2100
A65: NOVARTIS PHARMA SAS | B65: Médecin | C65: Pr Stéphane OUDARD | D65: 15/02/2017 | E65: 600
A66: PFIZER SAS | B66: Médecin | C66: Pr Stéphane OUDARD | D66: 28/03/2017 | E66: 1200
A67: ASTRAZENECA | B67: Médecin | C67: Pr Stéphane OUDARD | D67: 2017-04-06 | E67: 1500
A68: NOVARTIS PHARMA SAS | B68: Médecin | C68: Pr Stéphane OUDARD | D68: 2017-04-10 | E68: 800
A69: BRISTOL-MYERS SQUIBB | B69: Médecin | C69: Pr Stéphane OUDARD | D69: 19/04/2017 | E69: 450
A70: SANOFI AVENTIS FRANCE | B70: Médecin | C70: Pr Stéphane OUDARD | D70: 25/04/2017 | E70: 2091
A71: NOVARTIS PHARMA SAS | B71: Médecin | C71: Pr Stéphane OUDARD | D71: 26/04/2017 | E71: 600
A72: IPSEN PHARMA | B72: Médecin | C72: Pr Stéphane OUDARD | D72: 30/04/2017 | E72: 900
A73: NOVARTIS PHARMA SAS | B73: Médecin | C73: Pr Stéphane OUDARD | D73: 2017-05-10 | E73: 1000
A74: Association pour le Développement de l’Enseignement et des Recherches auprès des universités des centres de recherches et des entreprises d’Aquitaine (ADERA) | B74: Médecin | C74: Pr Stéphane OUDARD | D74: 19/06/2017 | E74: 5160
A75: JANSSEN-CILAG | B75: Médecin | C75: Pr Stéphane OUDARD | D75: 28/06/2017 | E75: 720
A76: SANOFI AVENTIS FRANCE | B76: Médecin | C76: Pr Stéphane OUDARD | D76: 28/06/2017 | E76: 600
A77: JANSSEN-CILAG | B77: Médecin | C77: Pr Stéphane OUDARD | D77: 20/07/2017 | E77: 1200
A78: SANOFI AVENTIS FRANCE | B78: Médecin | C78: Pr Stéphane OUDARD | D78: 22/08/2017 | E78: 2400
A79: IPSEN PHARMA | B79: Médecin | C79: Pr Stéphane OUDARD | D79: 31/08/2017 | E79: 1375
A80: IPSEN PHARMA | B80: Médecin | C80: Pr Stéphane OUDARD | D80: 31/08/2017 | E80: 1375
A81: BRISTOL-MYERS SQUIBB | B81: Médecin | C81: Pr Stéphane OUDARD | D81: 18/10/2017 | E81: 450
A82: BRISTOL-MYERS SQUIBB | B82: Médecin | C82: Pr Stéphane OUDARD | D82: 2017-11-01 | E82: 1200
A83: SANOFI AVENTIS FRANCE | B83: Médecin | C83: Pr Stéphane OUDARD | D83: 2017-11-09 | E83: 600
A84: SANOFI-AVENTIS GROUPE | B84: Médecin | C84: Pr Stéphane OUDARD | D84: 2017-12-05 | E84: 2400
A85: SANOFI AVENTIS FRANCE | B85: Médecin | C85: Pr Stéphane OUDARD | D85: 2017-12-05 | E85: 3150
A86: SANOFI AVENTIS FRANCE | B86: Médecin | C86: Pr Stéphane OUDARD | D86: 2018-01-04 | E86: 600
A87: NOVARTIS PHARMA SAS | B87: Médecin | C87: Pr Stéphane OUDARD | D87: 2018-01-05 | E87: 600
A88: MSD France | B88: Médecin | C88: Pr Stéphane OUDARD | D88: 22/01/2018 | E88: 1000
A89: BRISTOL-MYERS SQUIBB | B89: Médecin | C89: Pr Stéphane OUDARD | D89: 2018-02-07 | E89: 960
A90: ASTELLAS PHARMA | B90: Médecin | C90: Pr Stéphane OUDARD | D90: 18/02/2018 | E90: 900
A91: ASTRAZENECA | B91: Médecin | C91: Pr Stéphane OUDARD | D91: 23/02/2018 | E91: 1200
A92: JANSSEN-CILAG | B92: Médecin | C92: Pr Stéphane OUDARD | D92: 2018-03-01 | E92: 1800
A93: JANSSEN-CILAG | B93: Médecin | C93: Pr Stéphane OUDARD | D93: 20/03/2018 | E93: 1200
A94: JANSSEN-CILAG | B94: Médecin | C94: Pr Stéphane OUDARD | D94: 13/04/2018 | E94: 1800
A95: ASTELLAS PHARMA | B95: Médecin | C95: Pr Stéphane OUDARD | D95: 16/04/2018 | E95: 2400
A96: JANSSEN-CILAG | B96: Médecin | C96: Pr Stéphane OUDARD | D96: 24/04/2018 | E96: 1200
A97: JANSSEN-CILAG | B97: Médecin | C97: Pr Stéphane OUDARD | D97: 24/04/2018 | E97: 1200
A98: SANOFI AVENTIS FRANCE | B98: Médecin | C98: Pr Stéphane OUDARD | D98: 2018-05-09 | E98: 3600
A99: SANOFI AVENTIS FRANCE | B99: Médecin | C99: Pr Stéphane OUDARD | D99: 2018-05-09 | E99: 1500
C101: Total | E101: =SUM(E2:E99) -> 164514
C102: 2018 | E102: =SUM(E86:E99) -> 19960
C103: 2017 | E103: =SUM(E60:E85) -> 35979
C104: 2016 | E104: =SUM(E34:E59) -> 51982
C105: 2015 | E105: =SUM(E18:E33) -> 33357
C106: 2014 | E106: =SUM(E9:E17) -> 12288
C107: 2013 | E107: =SUM(E2:E8) -> 10948
F108: % | G108: Cumul%
C109: SANOFI-AVENTIS | E109: =SUM(E$124:E$125) -> 112866 | F109: =E109/E$101 -> 0.6860571137 | G109: =F109 -> 0.6860571137
C110: JANSSEN-CILAG | E110: =SUMIF(A$2:A$99,"JANSSEN-CILAG",E$2:E$99) -> 15290 | F110: =E110/E$101 -> 0.09294041844 | G110: =F110+G109 -> 0.7789975321
C111: NOVARTIS PHARMA SAS | E111: =SUMIF(A$2:A$99,"NOVARTIS PHARMA SAS",E$2:E$99) -> 6800 | F111: 0.04133386824 | G111: =F111+G110 -> 0.8203314004
C112: BRISTOL-MYERS SQUIBB | E112: =SUMIF(A$2:A$99,"BRISTOL-MYERS SQUIBB",E$2:E$99) -> 3060 | F112: 0.01860024071 | G112: 0.8389316411
C113: ASTELLAS PHARMA | E113: =SUMIF(A$2:A$99,"ASTELLAS PHARMA",E$2:E$99) -> 4980 | F113: 0.03027097998 | G113: 0.8692026211
C114: PFIZER SAS | E114: =SUMIF(A$2:A$99,"PFIZER SAS",E$2:E$99) -> 4240 | F114: 0.02577288255 | G114: 0.8949755036
C115: IPSEN PHARMA | E115: =SUMIF(A$2:A$99,"IPSEN PHARMA",E$2:E$99) -> 3650 | F115: 0.02218656163 | G115: 0.9171620652
C116: Bayer HealthCare SAS | E116: =SUMIF(A$2:A$99,"Bayer HealthCare SAS",E$2:E$99) -> 3068 | F116: 0.01864886879 | G116: 0.935810934
C117: ASTRAZENECA | E117: =SUMIF(A$2:A$99,"ASTRAZENECA",E$2:E$99) -> 2700 | F117: 0.0164119771 | G117: 0.9522229111
C118: EISAI SAS | E118: =SUMIF(A$2:A$99,"EISAI SAS",E$2:E$99) -> 1500 | F118: 0.009117765053 | G118: 0.9613406762
C119: MSD France | E119: =SUMIF(A$2:A$99,"MSD France",E$2:E$99) -> 1000 | F119: 0.006078510036 | G119: 0.9674191862
C124: SANOFI AVENTIS France | E124: =SUMIF(A$2:A$99,"SANOFI AVENTIS France",E$2:E$99) -> 55997
C125: SANOFI-AVENTIS GROUPE | E125: =SUMIF(A$2:A$99,"SANOFI-AVENTIS GROUPE",E$2:E$99) -> 56869

Sheet AVANTAGES
A1: TYPE_AVTG dans Transparence.sante.gouv.fr | B1: TYPE_AVTG (libellé de regroupement)
A2: [Autre] : Participation Evenement Scientifique | B2: Congrès
A3: [Autre] inscription congrès | B3: Inscription
A4: [HEBERGEMENT] | B4: Hébergement
A5: [HOSPITALITE] | B5: Hospitalité
A6: [REPAS] | B6: Repas
A7: [TRANSPORT] | B7: Transport
A8: Acheminement | B8: Transport
A9: AUTRE | B9: Autre
A10: AUTRE (PRECISER) | B10: Autre
A11: AUTRE (PRECISER):[LOCATION DE MATERIEL] | B11: Autre
A12: Autre : [ Forfait journée détude ] | B12: Autre
A13: Autre : [ Forfait journée détude ou forfait congrès ] | B13: Congrès
A14: Autre : [ Forfait journée étude ] | B14: Autre
A15: Autre : [ Inscription ] | B15: Inscription
A16: AUTRE : [ACCOMPAGNEMENT] | B16: Autre
A17: AUTRE : [CONTRAT DE PARTENARIAT - LOCATION DE STAND] | B17: Congrès
A18: AUTRE : [COUTS PAR CENTRE] | B18: Autre
A19: AUTRE : [DEDOMMAGEMENT] | B19: Autre
A20: Autre : [DEJEUNER REUNION] | B20: Repas
A21: AUTRE : [DON EN NATURE] | B21: Autre
A22: Autre : [don] | B22: Autre
A23: AUTRE : [DONS] | B23: Autre
A24: Autre : [ECHANTILLON] | B24: Autre
A25: Autre : [Forfait] | B25: Autre
A26: Autre : [Formation] | B26: Autre
A27: Autre : [FRAIS D'INSCRIPTION] | B27: Inscription
A28: Autre : [HONORAIRE] | B28: Autre
A29: Autre : [Honoraires PdS] | B29: Autre
A30: Autre : [Honoraires] | B30: Repas
A31: Autre : [Hospitalité Evenement Scientifique] | B31: Hospitalité
A32: AUTRE : [HOSPITALITE] | B32: Hospitalité
A33: AUTRE : [INSCRIPTION CONGRÈS SCIENTIFIQUE] | B33: Inscription
A34: Autre : [Inscription Evenement Scientifique] | B34: Inscription
A35: Autre : [Inscription] | B35: Inscription
A36: Autre : [Location de stand] | B36: Congrès
A37: Autre : [note de frais] | B37: Autre
A38: Autre : [Notes de frais] | B38: Autre
A39: AUTRE : [PARTICIPATION EVENEMENT SCIENTIFIQUE] | B39: Congrès
A40: AUTRE : [PAUSE] | B40: Autre
A41: Autre : [Remboursement de frais] | B41: Autre
A42: AUTRE : [REMBOURSEMENT FRAIS LOGISTIQUE] | B42: Autre
A43: Autre : [Remis Publication scientifique] | B43: Autre
A44: Autre : [rémunération] | B44: Repas
A45: Autre : [Restauration] | B45: Repas
A46: Autre : [stand] | B46: Congrès
A47: Autre : cheque | B47: Autre
A48: AUTRE : CONGRES | B48: Autre
A49: AUTRE : DEJEUNER | B49: Repas
A50: AUTRE : DEUX PAUSES | B50: Repas
A51: AUTRE : DINER | B51: Repas
A52: AUTRE : DON DE MÉDICAMENT | B52: Autre
A53: autre : enquête internet | B53: Autre
A54: autre : enquête téléphonique | B54: Autre
A55: AUTRE : FORMATION MEDICALE CONTINUE | B55: Autre
A56: AUTRE : FRAIS DE RESTAURATION / RP | B56: Repas
A57: Autre : Frais d'inscription Congres | B57: Inscription
A58: Autre : Frais d'inscription Congrès | B58: Inscription
A59: AUTRE : HONORAIRE | B59: Autre
A60: AUTRE : HONORAIRE CONFERENCE TELEPHONIQUE | B60: Autre
A61: AUTRE : HONORAIRES | B61: Autre
A62: AUTRE : HONORAIRES CONFERENCE TELEPHONIQUE | B62: Autre
A63: AUTRE : HONORAIRES ETUDES | B63: Autre
A64: AUTRE : HONORAIRES REUNION | B64: Autre
A65: AUTRE : HOSPITALITE CONGRES | B65: Congrès
A66: AUTRE : HOSPITALITE STAFF | B66: Hospitalité
A67: Autre : Indemnite | B67: Autre
A68: Autre : Inscription | B68: Inscription
A69: Autre : LOCATION STAND | B69: Autre
A70: AUTRE : PRÊT | B70: Autre
A71: AUTRE : RELATIONS NORMALES DE TRAVAIL | B71: Autre
A72: AUTRE : REMBOURSEMENT DE FRAIS | B72: Autre
A73: AUTRE : REMUNERATION | B73: Autre
A74: AUTRE : REPAS PROFESSIONNEL | B74: Repas
A75: Autre : repas STAFF | B75: Repas
A76: AUTRE : REUNION | B76: Autre
A77: AUTRE : RNT | B77: Autre
A78: AUTRE : STAFF | B78: Repas
A79: AUTRE : STAND CONGRES | B79: Congrès
A80: Autre : Supports formation | B80: Autre
A81: Autre : surcoûts direction hospitalière | B81: Autre
A82: AUTRE [DINER REUNION] | B82: Repas
A83: AUTRE [DONS] | B83: Autre
A84: AUTRE [ENQUETE] | B84: Autre
A85: AUTRE [FRAIS D INSCRIPTION] | B85: Inscription
A86: AUTRE [INSCRIPTION] | B86: Inscription
A87: AUTRE [PAUSE] | B87: Autre
A88: AUTRE [RESTAURATION STAFF] | B88: Repas
A89: AUTRE: [DON] | B89: Autre
A90: AUTRE: [DONS] | B90: Autre
A91: Autre: [Enquête] | B91: Autre
A92: AUTRE: [HEBERGEMENT ET RESTAURATIONS] | B92: Hébergement
A93: AUTRE: [INSCRIPTION] | B93: Inscription
A94: AUTRE: [LIVRE A BUT PEDAGOGIQUE] | B94: Autre
A95: AUTRE: COLLATION | B95: Repas
A96: AUTRE: COLLATION/COLLATION | B96: Repas
A97: AUTRE: CONGRES/COCKTAIL | B97: Repas
A98: AUTRE: CONGRES/INSCRIPTION | B98: A définir
A99: AUTRE: DEJEUNER | B99: Repas
A100: AUTRE: DEJEUNER/DINER | B100: Repas
A101: AUTRE: DEJEUNER/RESTO ITALIEN BON | B101: Repas
A102: Autre: Don | B102: Autre
A103: AUTRE: HOSPITALITE | B103: Hospitalité
A104: AUTRE: INDEMNITE | B104: Autre
A105: AUTRE: INSCRIPTION | B105: Inscription
A106: Autre: Phone consult | B106: Autre
A107: AUTRE: SOIREE | B107: Hospitalité
A108: AUTRE: SOIREE/SOIREE | B108: Autre
A109: AUTRE: STAFF | B109: Repas
A110: AUTRE: VISITE/(2 X GO-ON 25MG) | B110: Autre
A111: AUTRE: VISITE/(3 X GO-ON 25MG) | B111: Autre
A112: AUTRE: VISITE/GO-ON 25MG | B112: Autre
A113: AUTRE:[FRAIS D'INSCRIPTION] | B113: Inscription
A114: AUTRE:[FRAIS FIXES CONVENTION] | B114: Autre
A115: AUTRE:[SURCOUTS HOSPITALIERS] | B115: Autre
A116: AUTRE:RECHERCHE | B116: Autre
A117: Autre[HONORAIRES] | B117: Autre
A118: Autre[inscription congrès] | B118: Congrès
A119: AUTRES | B119: Autre
A120: AUTRES : REMBOURSEMENT DE FRAIS | B120: Autre
A121: AUTRES: INSCRIPTION | B121: Inscription
A122: CADEAUX | B122: Autre
A123: COLLATION | B123: Repas
A124: COLLATION/COLLATION | B124: Repas
A125: CONGRES/ACHEMINEMENT (AVION) | B125: Transport
A126: CONGRES/DEJEUNERS / DINERS (4) | B126: Repas
A127: CONGRES/HEBERGEMENT | B127: Hébergement
A128: CONGRES/HEBERGEMENT (1 NUITEES) | B128: Hébergement
A129: CONGRES/HEBERGEMENT (2 NUITEES) | B129: Hébergement
A130: CONGRES/HEBERGEMENT 3 NUITS | B130: Hébergement
A131: CONGRES/INSCRIPTION | B131: Inscription
A132: CONGRES/REPAS 12.06.13 | B132: Repas
A133: CONGRES/REPAS 13.06.13 | B133: Repas
A134: CONGRES/REPAS 14.06.13 | B134: Repas
A135: CONGRES/REPAS X3 | B135: Repas
A136: conseil | B136: Autre
A137: Conseil - Intervention Ponctuelle | B137: Autre
A138: Dédommagement | B138: Autre
A139: DEJEUNER | B139: Repas
A140: déjeuner | B140: Repas
A141: DEJEUNER/DEJEUNER | B141: Repas
A142: DEJEUNER/REPAS | B142: Repas
A143: Déplacement | B143: Transport
A144: DINER | B144: Repas
A145: Dîner | B145: Repas
A146: DOCUMENTATION | B146: Autre
A147: Don | B147: Autre
A148: DON / SUBVENTION | B148: Autre
A149: DON DE MATERIEL POUR ETUDE CLINIQUE | B149: Autre
A150: DONS | B150: Autre
A151: Dons de fonctionnement | B151: Autre
A152: DONS DE FONCTIONNEMENT (RÉMUNÉRATION LIÉE À DES ACTIVITÉS DE RECHERCHE) | B152: Autre
A153: DONS DE FONCTIONNEMENT / RECHERCHE | B153: Autre
A154: DONS DE MATERIEL | B154: Autre
A155: Dons de matériel | B155: Autre
A156: Droits d'auteur pris en charge par UCB | B156: Autre
A157: Echantillon récipient de cryoconservation Nalgene Mister Frosty | B157: Autre
A158: enquête | B158: Autre
A159: EPU | B159: Repas
A160: EPU/DINER | B160: Repas
A161: EPU/EPU | B161: Congrès
A162: EPU/REPAS | B162: Repas
A163: FRAIS DE BOUCHE | B163: Repas
A164: Frais de dÃƒÂ©placement | B164: Transport
A165: FRAIS DE DEPLACEMENT | B165: Transport
A166: FRAIS DE RESTAURATION | B166: Repas
A167: FRAIS D'HOSPITALITÉ | B167: Hospitalité
A168: FRAIS D'INSCRIPTION | B168: Inscription
A169: Frais d'inscription à une réunion scientifique | B169: Inscription
A170: FRAIS RELATIFS A LA RECHERCHE IMPLIQUANT LA PERSONNE HUMAINE | B170: Autre
A171: Frais remboursés (transport) | B171: Transport
A172: H‚bergement | B172: Hébergement
A173: HÃ©bergement | B173: Hébergement
A174: HÃ‰BERGEMENT | B174: Hébergement
A175: HÃƒÂ©bergement | B175: Hébergement
A176: HEBERGEMENT | B176: Hospitalité
A177: HEBERGEMENT | B177: Hébergement
A178: Hébergement | B178: Hébergement
A179: Hébérgement | B179: Hébergement
A180: HEBERGEMENT SUR TOUTE LA DUREE DU CONGRES | B180: Hébergement
A181: Hébergement, restauration, transport | B181: Hospitalité
A182: Honoraire + hospitalité | B182: Hospitalité
A183: HONORAIRE HCP | B183: Autre
A184: HONORAIRES | B184: Autre
A185: Honoraires de consultant | B185: Autre
A186: HOSPITALITE | B186: Hospitalité
A187: HOSPITALITÉ | B187: Hospitalité
A188: HOSPITALITE - RELATIONS NORMALES DE TRAVAIL | B188: Hospitalité
A189: Hospitalité [ transport/repas/Hébergement] | B189: Hospitalité
A190: HOSPITALITE CONGRES | B190: Hospitalité
A191: Hospitalité Congrès Symposium | B191: Congrès
A192: HOSPITALITE REUNION PROFESSIONNELLE | B192: Hospitalité
A193: HOSPITALITE SITES PIERRE FABRE | B193: Hospitalité
A194: HOSPITALITE STAFF | B194: Hospitalité
A195: INCRIPTION | B195: Inscription
A196: INDEMNITE | B196: Autre
A197: INSCRIPTION | B197: Inscription
A198: INSCRIPTION CONGRES | B198: Inscription
A199: Inscription congrès | B199: Congrès
A200: Inscription Evenement Scientifique | B200: Inscription
... 50 more rows

Sheet CONVENTIONS
A1: TYPE_CONVENTION dans Transparence.sante.gouv.fr | B1: TYPE_CONVENTION (libellé de regroupement)
A2: [AUTRE] : [COLLABORATION SCIENTIFIQUE] | B2: Expert
A3: [AUTRE] : [CONVENTION HOSPITALITE] | B3: Hospitalité
A4: [AUTRE] : [CONVENTION HOSPITALITE] | B4: Hospitalité
A5: [BOARD EXPERTS] | B5: Réunion de « Board »
A6: [FORMATION] | B6: Autre
A7: [MARKETING] | B7: Etude de marché
A8: [MARKETING] | B8: Etude de marché
A9: [ORATEUR] | B9: Orateur
A10: [ORATEURS MODERATEURS] | B10: Orateur
A11: [ORATEURS MODERATEURS] | B11: Orateur
A12: [REUNION INFORMATION MEDICALE] | B12: Réunion professionnelle
A13: 26E CONGRES FRANÇAIS DE RHUMATOLOGIE | B13: Réunion professionnelle
A14: ACCORD DE COOPERATION | B14: Expert
A15: Achat / location d'espace publicitaire | B15: Autre
A16: Achat / location d'espaces dans le cadre d'événements scientifiques | B16: Autre
A17: Achat / location d'espaces dans le cadre d'événements scientifiques | B17: Autre
A18: AMERICAN COLLEGE OF RHEUMATHOLOGY ACR/ARHP ANNUAL MEETING 2012 | B18: Réunion professionnelle
A19: ANNUAL EUROPEAN CONGRESS OF RHEUMATOLOGY | B19: Réunion professionnelle
A20: ASSISES BARCELONE | B20: Réunion professionnelle
A21: ATELIERS SIMS | B21: Réunion professionnelle
A22: AUTRE | B22: Autre
A23: AUTRE | B23: Autre
A24: Autre : | B24: Autre
A25: Autre : "CONTRAT D'ORATEUR" | B25: Orateur
A26: Autre : [ Collaboration Scientifique ] | B26: Expert
A27: Autre : [ Collaboration Scientifique ] | B27: Expert
A28: AUTRE : [ CONSEIL / EXPERTISE SCIENTIFIQUE ] | B28: Conseil
A29: Autre : [ EPU ] | B29: Réunion professionnelle
A30: Autre : [ EPU ] | B30: Réunion professionnelle
A31: Autre : [ Expert ] | B31: Expert
A32: Autre : [ Expert ] | B32: Expert
A33: AUTRE : [ HOSPITALITE ] | B33: Hospitalité
A34: AUTRE : [ HOSPITALITE ] | B34: Hospitalité
A35: Autre : [ hospitalité ] | B35: Hospitalité
A36: Autre : [ hospitalité liée à une manifestation scientifique ] | B36: Hospitalité
A37: Autre : [ hospitalité liée à une manifestation scientifique ] | B37: Hospitalité
A38: Autre : [ Manifestation professionnelle ] | B38: Réunion professionnelle
A39: Autre : [ Manifestation professionnelle ] | B39: Réunion professionnelle
A40: Autre : [ Orateur / Intervenant ] | B40: Orateur
A41: Autre : [ Orateur / Intervenant ] | B41: Orateur
A42: Autre : [ Orateur ] | B42: Orateur
A43: Autre : [ Partenariat ] | B43: Autre
A44: Autre : [ Prestation ] | B44: Conseil
A45: Autre : [ R‚union professionnelle ] | B45: Réunion professionnelle
A46: Autre : [ R‚union professionnelle ] | B46: Réunion professionnelle
A47: Autre : [ Runion professionnelle ] | B47: Réunion professionnelle
A48: Autre : [ Runion professionnelle ] | B48: Réunion professionnelle
A49: Autre : [ Reunion professionnelle ] | B49: Réunion professionnelle
A50: Autre : [ Réunion professionnelle ] | B50: Réunion professionnelle
A51: Autre : [ Reunion professionnelle ] | B51: Réunion professionnelle
A52: Autre : [ Réunion professionnelle ] | B52: Réunion professionnelle
A53: Autre : [AUTRE: PRESTATION DE SERVICES] | B53: Conseil
A54: Autre : [AUTRE] : [CONTRAT DE COLLABORATION] | B54: Autre
A55: Autre : [AUTRE] : [CONVENTION HOSPITALITE] | B55: Hospitalité
A56: Autre : [BOARD EXPERTS] | B56: Expert
A57: Autre : [collaboration scientifique] | B57: Expert
A58: Autre : [Communication scientifique] | B58: Expert
A59: Autre : [Communication scientifique] | B59: Conseil
A60: Autre : [Consultant (HCP)] | B60: Conseil
A61: Autre : [Consultant (HCP)] | B61: Conseil
A62: Autre : [Consultant] | B62: Conseil
A63: Autre : [Contrat autre] | B63: Autre
A64: Autre : [Contrat autre] | B64: Autre
A65: AUTRE : [CONTRAT DE COLLABORATION SCIENTIFIQUE] | B65: Expert
A66: AUTRE : [CONTRAT DE COLLABORATION SCIENTIFIQUE] | B66: Expert
A67: AUTRE : [CONTRAT DE CONSEIL & PRESTATION] | B67: Conseil
A68: AUTRE : [CONTRAT DE CONSEIL & PRESTATION] | B68: Conseil
A69: Autre : [Contrat de consultant] | B69: Conseil
A70: AUTRE : [CONTRAT DE PARTENARIAT - LOCATION DE STAND] | B70: Réunion professionnelle
A71: AUTRE : [CONTRAT DE PARTENARIAT - LOCATION DE STAND] | B71: Réunion professionnelle
A72: AUTRE : [CONTRAT DE PARTENARIAT] | B72: Autre
A73: AUTRE : [CONTRAT D'ORATEUR] | B73: Orateur
A74: AUTRE : [CONTRAT D'ORATEUR] | B74: Orateur
A75: Autre : [CONTRAT ORATEUR] | B75: Orateur
A76: Autre : [CONTRAT_DE_PRESTATIONS_DE_SERVICES] | B76: Conseil
A77: AUTRE : [CONVENTION D HOSPITALITE] | B77: Hospitalité
A78: AUTRE : [CONVENTION D HOSPITALITE] | B78: Hospitalité
A79: Autre : [Convention d’Hospitalité] | B79: Hospitalité
A80: Autre : [Convention de consultant] | B80: Conseil
A81: Autre : [CONVENTION D'HOSPITALITE] | B81: Hospitalité
A82: Autre : [Convention d'Hospitalité] | B82: Hospitalité
A83: Autre : [CONVENTION D'HOSPITALITE] | B83: Hospitalité
A84: Autre : [Convention d'hospitalité] | B84: Hospitalité
A85: AUTRE : [CONVENTION HOSPITALITE] | B85: Hospitalité
A86: Autre : [Convention Orateur] | B86: Orateur
A87: AUTRE : [CONVENTION SANS REMUNERATION]. | B87: Autre
A88: AUTRE : [DONS] | B88: Autre
A89: Autre : [entretien] | B89: Etude de marché
A90: Autre : [entretien] | B90: Etude de marché
A91: Autre : [Espace publicitaire] | B91: Autre
A92: Autre : [Espace publicitaire] | B92: Autre
A93: AUTRE : [ETUDE CLINIQUE] | B93: Recherche Clinique
A94: Autre : [ETUDE DE MARCHE] | B94: Etude de marché
A95: Autre : [EXPERT CONSULTANT] | B95: Expert
A96: Autre : [Expertise] | B96: Expert
A97: Autre : [Face face] | B97: Autre
A98: AUTRE : [HOSPITALITÉ EVENEMENT SCIENTIFIQUE] | B98: Hospitalité
A99: Autre : [Hospitalité Evenement] | B99: Hospitalité
A100: AUTRE : [HOSPITALITE EVENEMENT] | B100: Hospitalité
A101: Autre : [Hospitalité Evenement] | B101: Hospitalité
A102: Autre : [Hospitalité Genzyme] | B102: Hospitalité
A103: Autre : [Hospitalité] | B103: Hospitalité
A104: AUTRE : [INTERVENANT] | B104: A définir
A105: AUTRE : [INTERVENANT] | B105: Orateur
A106: Autre : [Invitation individuelle] | B106: Autre
A107: Autre : [Invitation individuelle] | B107: Autre
A108: Autre : [Location de stand / Congrès / Autre] | B108: Réunion professionnelle
A109: Autre : [Marketing] | B109: Etude de marché
A110: Autre : [Marketing] | B110: Etude de marché
A111: Autre : [Opération SA/Journée-Soirée] | B111: Autre
A112: Autre : [Opérations Genzyme] | B112: Autre
A113: Autre : [Orateur] | B113: Orateur
A114: Autre : [Orateur] | B114: Orateur
A115: Autre : [ORATEURS MODERATEURS] | B115: Orateur
A116: AUTRE : [PARTENARIAT] | B116: Autre
A117: AUTRE : [PARTICIPATION RÉUNION SCIENTIFIQUE] | B117: Réunion professionnelle
A118: AUTRE : [PARTICIPATION RÉUNION SCIENTIFIQUE] | B118: Réunion professionnelle
A119: AUTRE : [PARTICIPATION R�ION SCIENTIFIQUE] | B119: Réunion professionnelle
A120: AUTRE : [PARTICIPATION R�ION SCIENTIFIQUE] | B120: Réunion professionnelle
A121: AUTRE : [PRESTATION DE SERVICE] | B121: Conseil
A122: Autre : [Recherche biomédicale] | B122: Recherche Clinique
A123: Autre : [Recherche biomédicale] | B123: Recherche Clinique
A124: Autre : [Recherche/Développement] | B124: Recherche Clinique
A125: Autre : [Recherche/Développement] | B125: Recherche Clinique
A126: Autre : [RECHERCHE] | B126: Recherche Clinique
A127: Autre : [Rédaction d'articles scientifiques] | B127: Rédacteur
A128: Autre : [Repas] | B128: Hospitalité
A129: Autre : [Réunion] | B129: Réunion professionnelle
A130: Autre : [Réunion] | B130: Réunion professionnelle
A131: Autre : [RP Prédéclarée Hospitalité] | B131: Hospitalité
A132: AUTRE : [RP Table ronde actu Rhumatologie] | B132: Réunion professionnelle
A133: AUTRE : [RP TFI] | B133: Orateur
A134: Autre : [STAFF] | B134: Réunion professionnelle
A135: Autre : [STAFF] | B135: Réunion professionnelle
A136: AUTRE : [STAND/TABLE] | B136: Réunion professionnelle
A137: Autre : 3116001; site 101; | B137: Autre
A138: Autre : Accord d'Orateur | B138: Orateur
A139: Autre : Accord d'Orateur | B139: Orateur
A140: Autre : ACHAT / LOCATION DE STAND | B140: Autre
A141: Autre : ACHAT/LOCATION DE STAND | B141: Autre
A142: Autre : Auteur - rédacteur | B142: Rédacteur
A143: Autre : AUTRE | B143: Autre
A144: Autre : AUTRE | B144: Autre
A145: Autre : AUTRE / HOSPITALITES | B145: Hospitalité
A146: Autre : AUTRE / STAND | B146: Réunion professionnelle
A147: Autre : AUTRE / STAND | B147: Autre
A148: Autre : Autre : | B148: Autre
A149: Autre : AUTRE : [ CONSEIL / EXPERTISE SCIENTIFIQUE ] | B149: Conseil
A150: Autre : Autre : [ EPU ] | B150: Réunion professionnelle
A151: Autre : Autre : [ Expert ] | B151: Expert
A152: Autre : Autre : [ Expert ] | B152: Expert
A153: Autre : AUTRE : [ HOSPITALITE ] | B153: Hospitalité
A154: Autre : Autre : [ hospitalité liée à une manifestation scientifique ] | B154: Hospitalité
A155: Autre : Autre : [ Location de stand ] | B155: Réunion professionnelle
A156: Autre : Autre : [ Manifestation professionnelle ] | B156: Réunion professionnelle
A157: Autre : Autre : [ Manifestation professionnelle ] | B157: Réunion professionnelle
A158: Autre : Autre : [ Orateur / Intervenant ] | B158: Orateur
A159: Autre : Autre : [ Orateur / Intervenant ] | B159: Orateur
A160: Autre : Autre : [ Parrainage ] | B160: Autre
A161: Autre : Autre : [ Partenariat ] | B161: Autre
A162: Autre : Autre : [ Prestation ] | B162: Conseil
A163: Autre : AUTRE : [ RECHERCHE SCIENTIFIQUE ] | B163: Recherche Clinique
A164: Autre : Autre : [ Reunion professionnelle ] | B164: Réunion professionnelle
A165: Autre : Autre : [ Réunion professionnelle ] | B165: Réunion professionnelle
A166: Autre : Autre : [ Reunion professionnelle ] | B166: Réunion professionnelle
A167: Autre : Autre : [ Réunion professionnelle ] | B167: Réunion professionnelle
A168: Autre : Autre : [Autre] | B168: Autre
A169: Autre : AUTRE : [AVENANT ENQUETE] | B169: Etude de marché
A170: Autre : Autre : [collaboration scientifique à titre gratuit] | B170: Expert
A171: Autre : Autre : [Collaboration Scientifique non remuneree] | B171: Expert
A172: Autre : AUTRE : [COLLABORATION SCIENTIFIQUE] | B172: Expert
A173: Autre : Autre : [Collaboration Scientifique] | B173: Expert
A174: Autre : Autre : [Communication scientifique] | B174: Expert
A175: Autre : Autre : [Communication scientifique] | B175: Expert
A176: Autre : Autre : [Conseil communication] | B176: Conseil
A177: Autre : Autre : [Consultant (HCP)] | B177: Conseil
A178: Autre : Autre : [Consultant (HCP)] | B178: Conseil
A179: Autre : AUTRE : [CONSULTANT] | B179: Conseil
A180: Autre : Autre : [Contrat autre] | B180: Autre
A181: Autre : AUTRE : [CONTRAT DE COLLABORATION SCIENTIFIQUE] | B181: Expert
A182: Autre : AUTRE : [CONTRAT DE COLLABORATION] | B182: Expert
A183: Autre : Autre : [Contrat de conseil & prestation] | B183: Conseil
A184: Autre : AUTRE : [CONTRAT DE CONSEIL & PRESTATION] | B184: Conseil
A185: Autre : Autre : [Contrat de conseilprestation] | B185: Conseil
A186: Autre : Autre : [CONTRAT DE CONSULTANT] | B186: Conseil
A187: Autre : AUTRE : [CONTRAT DE PARTENARIAT - LOCATION DE STAND] | B187: Réunion professionnelle
A188: Autre : AUTRE : [CONTRAT DE PARTENARIAT] | B188: Autre
A189: Autre : AUTRE : [CONTRAT DE PARTENARIAT] | B189: Autre
A190: Autre : Autre : [Contrat de recherche] | B190: Recherche Clinique
A191: Autre : AUTRE : [CONTRAT D'ORATEUR] | B191: Orateur
A192: Autre : Autre : [CONTRAT_DE_PRESTATIONS_DE_SERVICES] | B192: Conseil
A193: Autre : Autre : [Convention d ’Hospitalite] | B193: Hospitalité
A194: Autre : AUTRE : [CONVENTION D HOSPITALITE] | B194: Hospitalité
A195: Autre : Autre : [Convention d’Hospitalite] | B195: Hospitalité
A196: Autre : Autre : [Convention d’Hospitalite] | B196: Hospitalité
A197: Autre : Autre : [Convention d’Hospitalité] | B197: Hospitalité
A198: Autre : Autre : [Convention dHospitalité] | B198: Hospitalité
A199: Autre : Autre : [Convention de consultant] | B199: Conseil
A200: Autre : Autre : [Convention de partenariat] | B200: Autre
... 690 more rows

Sheet FIRMES
A1: FIRME dans Transparence.sante.gouv.fr | B1: FIRME (libellé de regroupement)
A2: 22 Juillet Conseil | B2: 22 Juillet Conseil
A3: 3-D Matrix Europe SAS | B3: 3-D Matrix Europe SAS
A4: 3M Belgium bvba/sprl | B4: 3M Belgium bvba/sprl
A5: 3M Deutschland GmbH | B5: 3M Deutschland GmbH
A6: 3M France | B6: 3M France
A7: 3M MAROC | B7: 3M MAROC
A8: 3M United Kingdom PLC | B8: 3M United Kingdom PLC
A9: 3S ORTHO | B9: 3S ORTHO
A10: 4Tech Cardio Ltd | B10: 4Tech Cardio Ltd
A11: 7 MED INDUSTRIE | B11: 7 MED INDUSTRIE
A12: A a Z SANTE | B12: A a Z SANTE
A13: A DEC INTERNATIONAL INC | B13: A DEC INTERNATIONAL INC
A14: A.I.R. | B14: A.I.R.
A15: A.MENARINI diagnostics | B15: A.MENARINI diagnostics
A16: A.R.C. Pharma | B16: A.R.C. Pharma
A17: A+A | B17: A+A
A18: a2m rehateam | B18: a2m rehateam
A19: AADAIRC | B19: AADAIRC
A20: ABBOTT FRANCE | B20: ABBOTT
A21: ABBOTT HEALTHCARE SAS | B21: ABBOTT
A22: ABBOTT PRODUCTS SAS | B22: ABBOTT
A23: AbbVie | B23: AbbVie
A24: ABENA-FRANTEX | B24: ABENA-FRANTEX
A25: Abiomed GmbH | B25: Abiomed GmbH
A26: ABM | B26: ABM
A27: abmedica | B27: abmedica
A28: ABS-Bolton Medical | B28: ABS-Bolton Medical
A29: accomed | B29: accomed
A30: ACCORD HEALTHCARE FRANCE SAS | B30: ACCORD HEALTHCARE FRANCE SAS
A31: ACCOVION SARL | B31: ACCOVION SARL
A32: Accuray Europe | B32: Accuray Europe
A33: ACIST Europe BV | B33: ACIST Europe BV
A34: ACM | B34: ACM
A35: Acorda Therapeutics, Inc. | B35: Acorda Therapeutics, Inc.
A36: ACOUSTIQUE MEDICAL DU LITTORAL | B36: ACOUSTIQUE MEDICAL DU LITTORAL
A37: ACS-Agence Conseil Santé | B37: ACS-Agence Conseil Santé
A38: ACS-Agence Conseil Santé | B38: ACS-Agence Conseil Santé
A39: ACT+ Consulting | B39: ACT+ Consulting
A40: ACTAVIS GROUP PTC EHF | B40: ACTAVIS GROUP PTC EHF
A41: Actelion Pharmaceuticals France | B41: Actelion
A42: Actelion Pharmaceuticals Ltd | B42: Actelion
A43: ACTION D'ECLAT | B43: ACTION D'ECLAT
A44: ADAIR | B44: ADAIR
A45: ADAPSIA | B45: ADAPSIA
A46: Adaptimmune LTD | B46: Adaptimmune LTD
A47: ADARE PHARMACEUTICALS SAS | B47: ADARE PHARMACEUTICALS SAS
A48: ADDMEDICA | B48: ADDMEDICA
A49: ADEP ASSISTANCE | B49: ADEP ASSISTANCE
A50: Adept Field Solutions | B50: Adept Field Solutions
A51: ADIR ASSISTANCE | B51: ADIR ASSISTANCE
A52: Adiral Assistance | B52: Adiral Assistance
A53: ADIRAL Association d'Aide aux Traitements À Domicile | B53: ADIRAL Association d'Aide aux Traitements À Domicile
A54: ADLER ORTHO France | B54: ADLER ORTHO France
A55: Adler Ortho srl | B55: Adler Ortho srl
A56: ADS ALSACE | B56: ADS ALSACE
A57: ADS CHAMPAGNE ARDENNE | B57: ADS CHAMPAGNE ARDENNE
A58: ADS LORRAINE | B58: ADS LORRAINE
A59: ADVANCE SAS | B59: ADVANCE SAS
A60: Advanced Accelerator Applications | B60: Advanced Accelerator Applications
A61: Advanced Accelerator Applications International SA | B61: Advanced Accelerator Applications International SA
A62: ADVANCED BIONICS SARL | B62: ADVANCED BIONICS SARL
A63: Advanced Medical Services, AMS GmbH | B63: Advanced Medical Services, AMS GmbH
A64: ADVICENNE | B64: ADVICENNE
A65: Aegerion Pharmaceuticals | B65: Aegerion Pharmaceuticals
A66: Aepodia France SARL | B66: Aepodia France SARL
A67: AERIS Medical SAS | B67: AERIS Medical SAS
A68: AEROGEN | B68: AEROGEN
A69: AFFINITES SANTE | B69: AFFINITES SANTE
A70: Agence Conseil 3P | B70: Agence Conseil 3P
A71: agence européenne informatique | B71: agence européenne informatique
A72: Agfa HealthCare France SA | B72: Agfa HealthCare France SA
A73: AGFA Healthcare Imaging Agents France | B73: AGFA Healthcare Imaging Agents France
A74: AGILENT TECHNOLOGIES FRANCE | B74: AGILENT TECHNOLOGIES FRANCE
A75: AGIR À dom Assistance | B75: AGIR À dom Assistance
A76: Aide aux Insuffisants Respiratoires de la Région Auvergne (A.I.R.R.A.) | B76: Aide aux Insuffisants Respiratoires de la Région Auvergne (A.I.R.R.A.)
A77: Aide aux Insuffisants Respiratoires de la Région Auvergne (A.I.R.R.A.) | B77: Aide aux Insuffisants Respiratoires de la Région Auvergne (A.I.R.R.A.)
A78: AIR A DOMICILE | B78: AIR A DOMICILE
A79: AIR DE BRETAGNE | B79: AIR DE BRETAGNE
A80: AIR DOMICILE SANTE ALPES | B80: AIR DOMICILE SANTE ALPES
A81: AIR DOMICILE VALLEE DU RHONE | B81: AIR DOMICILE VALLEE DU RHONE
A82: Air Liquide European Homecare Operations Services | B82: Air Liquide European Homecare Operations Services
A83: AIR LIQUIDE MEDICAL SYSTEMS | B83: AIR LIQUIDE MEDICAL SYSTEMS
A84: AIR LIQUIDE SANTE (INTERNATIONAL) | B84: AIR LIQUIDE SANTE (INTERNATIONAL)
A85: AIR LIQUIDE SANTE FRANCE | B85: AIR LIQUIDE SANTE FRANCE
A86: AIR SANTE | B86: AIR SANTE
A87: AIRE | B87: AIRE
A88: AIREL | B88: AIREL
A89: AIXIAL | B89: AIXIAL
A90: AIXPER'F | B90: AIXPER'F
A91: AJ4MED | B91: AJ4MED
A92: ALAIN AFFLELOU FRANCHISEUR | B92: ALAIN AFFLELOU FRANCHISEUR
A93: ALAIR & AVD | B93: ALAIR & AVD
A94: Alcimed GmbH | B94: Alcimed GmbH
A95: Alcimed Inc | B95: Alcimed Inc
A96: Alcimed SARL | B96: Alcimed SARL
A97: Alcimed SAS | B97: Alcimed SAS
A98: Alcimed Sprl | B98: Alcimed Sprl
A99: Alcura France | B99: Alcura France
A100: ALERE E-SANTE SAS | B100: ALERE E-SANTE SAS
A101: ALERE SAS | B101: ALERE SAS
A102: Alexion Pharma France | B102: Alexion Pharma France
A103: ALFA WASSERMANN PHARMA | B103: ALFA WASSERMANN PHARMA
A104: Align Technology SAS | B104: Align Technology SAS
A105: Alimera Sciences France | B105: Alimera Sciences France
A106: ALISEO | B106: ALISEO
A107: Alizé Pharma SAS | B107: Alizé Pharma SAS
A108: Alizé Pharma SAS | B108: Alizé Pharma SAS
A109: Alizé Santé | B109: Alizé Santé
A110: Alizé Santé | B110: Alizé Santé
A111: ALK-Abelló | B111: ALK-Abelló
A112: ALK-AbellÓ | B112: ALK-AbellÓ
A113: ALKAPHARM | B113: ALKAPHARM
A114: All Global | B114: All Global
A115: ALLERGAN FRANCE | B115: ALLERGAN FRANCE
A116: alliance healthcare repartition | B116: alliance healthcare repartition
A117: ALLIANCE PHARMA FRANCE | B117: ALLIANCE PHARMA FRANCE
A118: ALLIANCE'PERF | B118: ALLIANCE'PERF
A119: ALLP MEDITEC | B119: ALLP MEDITEC
A120: ALMIRALL SAS | B120: ALMIRALL SAS
A121: ALMUS | B121: ALMUS
A122: ALPHATEC SPINE INC | B122: ALPHATEC SPINE INC
A123: ALPHEGA | B123: ALPHEGA
A124: ALPINE SCIENTIFIC | B124: ALPINE SCIENTIFIC
A125: ALSANZA sarl | B125: ALSANZA sarl
A126: ALTEOR | B126: ALTEOR
A127: alveol'air | B127: alveol'air
A128: ALVIMEDICA Medical Technologie France | B128: ALVIMEDICA Medical Technologie France
A129: AM AUDITION | B129: AM AUDITION
A130: AMADEUS SANTE | B130: AMADEUS SANTE
A131: AMB-I SANTE PROVENCE | B131: AMB-I SANTE PROVENCE
A132: AMC APPAREILLAGE ET MATERIEL DE CARDIOLOGIE | B132: AMC APPAREILLAGE ET MATERIEL DE CARDIOLOGIE
A133: American Medical Systems France | B133: American Medical Systems France
A134: American Orthodontics | B134: American Orthodontics
A135: AMGEN SAS | B135: Amgen
A136: AMICUS THERAPEUTICS SAS | B136: AMICUS THERAPEUTICS SAS
A137: AMO FRANCE SAS | B137: AMO FRANCE SAS
A138: AMO Germany GmbH | B138: AMO Germany GmbH
A139: AMO INC USA | B139: AMO INC USA
A140: Amplifon Groupe France | B140: Amplifon Groupe France
A141: AMPLITUDE | B141: AMPLITUDE
A142: AMS 25 | B142: AMS 25
A143: AMS 70 | B143: AMS 70
A144: AMS 88 | B144: AMS 88
A145: ANERA | B145: ANERA
A146: ANNAYAKE | B146: ANNAYAKE
A147: ANTADIR | B147: ANTADIR
A148: Antadir Assistance SAS | B148: Antadir Assistance SAS
A149: ANTHOGYR | B149: ANTHOGYR
A150: ANTILLES AUDITION GUADELOUPE | B150: ANTILLES AUDITION GUADELOUPE
A151: AOTI Ltd | B151: AOTI Ltd
A152: APARD | B152: APARD
A153: apol | B153: apol
A154: APOLLO ENDOSURGERY UK LTD | B154: APOLLO ENDOSURGERY UK LTD
A155: Applied Medical France | B155: Applied Medical France
A156: APROVA | B156: APROVA
A157: APTALIS PHARMA SAS | B157: APTALIS PHARMA SAS
A158: Aptiv Solutions | B158: Aptiv Solutions
A159: AQUILAB | B159: AQUILAB
A160: ARAIR Assistance | B160: ARAIR Assistance
A161: ARAIR Assistance S.A. | B161: ARAIR Assistance S.A.
A162: ARAIRCHAR | B162: ARAIRCHAR
A163: arard | B163: arard
A164: ARCHIMEDES PHARMA France | B164: ARCHIMEDES PHARMA France
A165: ARCOS | B165: ARCOS
A166: ARGON MEDICAL DEVICES | B166: ARGON MEDICAL DEVICES
A167: ARIAD Pharmaceuticals (France) | B167: ARIAD Pharmaceuticals (France)
A168: ARJOHUNTLEIGH | B168: ARJOHUNTLEIGH
A169: ARROW GENERIQUES SAS | B169: ARROW GENERIQUES SAS
A170: ARSENAL-CDM | B170: ARSENAL-CDM
A171: ART&COS | B171: ART&COS
A172: ARTHES | B172: ARTHES
A173: Arthrex SAS | B173: Arthrex SAS
A174: Arthritis Fondation Courtin | B174: Arthritis Fondation Courtin
A175: ArthroCare France | B175: ArthroCare France
A176: Artialis | B176: Artialis
A177: ARX SAS | B177: ARX SAS
A178: ASAHI INTECC CO., LTD. | B178: ASAHI INTECC CO., LTD.
A179: Ascensia Diabetes Care France | B179: Ascensia Diabetes Care France
A180: ASDIA | B180: ASDIA
A181: Asept InMed | B181: Asept InMed
A182: ASKLE SANTE | B182: ASKLE SANTE
A183: ASPEN FRANCE | B183: ASPEN FRANCE
A184: ASPIDE AESTHETIC | B184: ASPIDE AESTHETIC
A185: ASPIDE MEDICAL | B185: ASPIDE MEDICAL
A186: ASSISTANCE DU GRAND EST | B186: ASSISTANCE DU GRAND EST
A187: ASSISTANCES MEDICALES SPECIALISEES | B187: ASSISTANCES MEDICALES SPECIALISEES
A188: Association Françoise et Eugène MINKOWSKI pour la santé mentale des migrants | B188: Association Françoise et Eugène MINKOWSKI pour la santé mentale des migrants
A189: Association Françoise et Eugène MINKOWSKI pour la santé mentale des migrants | B189: Association Françoise et Eugène MINKOWSKI pour la santé mentale des migrants
A190: Association pour le Développement de l'Enseignement et des Recherches auprès des universités des centres de recherches et des entreprises d'Aquitaine (ADERA) | B190: Association pour le Développement de l'Enseignement et des Recherches auprès des universités des centres de recherches et des entreprises d'Aquitaine (ADERA)
A191: Association pour le Développement de l'Enseignement et des Recherches auprès des universités des centres de recherches et des entreprises d'Aquitaine (ADERA) | B191: Association pour le Développement de l'Enseignement et des Recherches auprès des universités des centres de recherches et des entreprises d'Aquitaine (ADERA)
A192: ASTELLAS PHARMA | B192: ASTELLAS PHARMA
A193: ASTELLAS PHARMA B.V. | B193: ASTELLAS PHARMA B.V.
A194: ASTELLAS PHARMA GLOBAL DEVELOPMENT | B194: ASTELLAS PHARMA GLOBAL DEVELOPMENT
A195: ASTELLAS PHARMA GmbH | B195: ASTELLAS PHARMA GmbH
A196: ASTELLAS PHARMA Inc | B196: ASTELLAS PHARMA Inc
A197: ASTELLAS PHARMA Ltd | B197: ASTELLAS PHARMA Ltd
A198: ASTELLAS PHARMA S.A. | B198: ASTELLAS PHARMA S.A.
A199: Astellas Pharma Singapore Pte. Ltd. | B199: Astellas Pharma Singapore Pte. Ltd.
A200: ASTELLAS PHARMACEUTICALS AE | B200: ASTELLAS PHARMACEUTICALS AE
... 1909 more rows

Sheet Conception
B2: Concepteur :
D4: François PESTY
D5: Pharmacien, Ancien Interne des Hôpitaux de Paris, Institut Supérieur de Gestion,
D6: Consultant indépendant,
D7: Expert-Conseil en organisation et informatisation du circuit du médicament / Optimisation des approvisionnements et des stocks pharmaceutiques / Pilotage « médico-économique » des médicaments et dispositifs médicaux / Campagne « pilotes » de visites médicalisées des délégués de l’assurance maladie sur le médicament / Pertinence des traitements médicamenteux
D12: 2, square Gay Lussac
D13: 78330 Fontenay le Fleury
D14: Francois.PESTY@Wanadoo.fr
D15: 01 30 45 03 59 / 06 88 89 53 51
B18: François PESTY est membre de l'association FORMINDEP,

Sheet Déplacements
A2: Début | B2: Fin | C2: Signature | D2: Congrès | E2: Lieux | F2: Firme

Sheet Tableaux de synthèse
C3: Synthèse | G3: Avantages perçus | O3: Conventions signées | Z3: Montants des avantages versés par les entreprises - Montants des avantages versés par les entreprises - Montants des avantages versés par les entreprises - Montants des avantages versés | BI3: Nombres d'avantages versés par les entreprises - Nombres d'avantages versés par les entreprises - Nombres d'avantages versés par les entreprises - Nombres d'avantages versés par les entreprises - Nombres d'avantages versés par les entreprises - | CR3: Nombres de conventions signées avec les entreprises - Nombres de conventions signées avec les entreprises - Nombres de conventions signées avec les entreprises - Nombres de conventions signées avec les entreprises - Nombres de conventions signées avec les entreprises -
B4: Bénéficiaire | C4: Total avantages perçus (€) | D4: Nombre d'avantages perçus | E4: Nombre de conventions signées | F4: Rémunérations + montants de conventions | G4: Transport | H4: Hébergement | I4: Repas | J4: Hospitalité | K4: Inscription | L4: Conseil | M4: Congrès | N4: Autre | O4: Hospitalité | P4: Orateur | Q4: Réunion professionnelle | R4: Expert | S4: Conseil | T4: Recherche Clinique | U4: Etude de marché | V4: Formateur | W4: Rédacteur | X4: Réunion de « Board » | Y4: Autre | Z4: Bristol -Myers Squibb | AA4: Novartis | AB4: SANOFI-AVENTIS GROUPE | AC4: Janssen-Cilag | AD4: Sanofi Aventis France | AE4: ASTELLAS PHARMA | AF4: Takeda France | AG4: Pfizer | AH4: Roche | AI4: GSK | AJ4: ConsuMed Research | AK4: Medicys Limited | AL4: Amgen | AM4: Health Advances | AN4: IPSEN PHARMA | AO4: AstraZeneca | AP4: Bayer HealthCare SAS | AQ4: SANDOZ | AR4: MSD France | AS4: FERRING SAS | AT4: BOEHRINGER INGELHEIM FRANCE | AU4: MERCK SERONO | AV4: Pierre Fabre Médicament | AW4: HOSPIRA | AX4: Icomed | AY4: CHUGAI | AZ4: MEDA PHARMA | BA4: Lilly | BB4: THERADIAL SAS | BC4: Guerbet | BD4: LEO Pharma | BE4: A+A | BF4: TEVA SANTE SAS | BG4: PASCALEO | BH4: ARIAD Pharmaceuticals (France) | BI4: Sanofi Aventis France | BJ4: Janssen-Cilag | BK4: Bristol -Myers Squibb | BL4: ASTELLAS PHARMA | BM4: SANOFI-AVENTIS GROUPE | BN4: Novartis | BO4: Pfizer | BP4: Roche | BQ4: GSK | BR4: Amgen | BS4: AstraZeneca | BT4: Bayer HealthCare SAS | BU4: SANDOZ | BV4: MERCK SERONO | BW4: BOEHRINGER INGELHEIM FRANCE | BX4: Takeda France | BY4: Pierre Fabre Médicament | BZ4: IPSEN PHARMA | CA4: ConsuMed Research | CB4: HOSPIRA | CC4: MSD France | CD4: CHUGAI | CE4: LEO Pharma | CF4: MEDA PHARMA | CG4: Icomed | CH4: TEVA SANTE SAS | CI4: Lilly | CJ4: FERRING SAS | CK4: Guerbet | CL4: THERADIAL SAS | CM4: ARIAD Pharmaceuticals (France) | CN4: A+A | CO4: Health Advances | CP4: PASCALEO | CQ4: Medicys Limited | CR4: Sanofi Aventis France | CS4: Janssen-Cilag | CT4: Pfizer | CU4: SANOFI-AVENTIS GROUPE | CV4: Novartis | CW4: Bristol -Myers Squibb | CX4: Bayer HealthCare SAS | CY4: IPSEN PHARMA | CZ4: ASTELLAS PHARMA | DA4: AstraZeneca | DB4: Pierre Fabre Médicament | DC4: WorldOne Group B.V. | DD4: Amgen | DE4: GSK | DF4: Roche | DG4: SANDOZ | DH4: Takeda France | DI4: B3TSI | DJ4: FERRING SAS | DK4: Simon-Kucher & Partners | DL4: KEPHREN | DM4: PRA | DN4: INC RESEARCH, LLC | DO4: MSD France | DP4: TBWA\ADELPHI | DQ4: ASTELLAS PHARMA Ltd | DR4: ARIAD Pharmaceuticals (France) | DS4: Covance Clinical And Periapproval Services SARL | DT4: M3 Global Research Ltd | DU4: TEVA SANTE SAS | DV4: Ipsos Mori UK Limited | DW4: Elixo SAS | DX4: Health Advances | DY4: QUINTILES BENEFIT FRANCE SNC | DZ4: KeyQuest Health Ltd. | EA4: Serial Creative | EB4: Kantar Health | EC4: EISAI SAS | ED4: PPD FRANCE SAS | EE4: EUSA Pharma (France) SAS | EF4: STETHOS | EG4: RE-IMAGINE Health Agency | EH4: BOEHRINGER INGELHEIM FRANCE | EI4: LEO Pharma | EJ4: IPSEN INNOVATION
B5: Pr Stéphane OUDARD | C5: =SUMPRODUCT(('Avantages perçus'!$A$2:$A$30015=B5)*('Avantages perçus'!$F$2:$F$30015)) -> 133592 | D5: =COUNTIFS('Avantages perçus'!$A$2:$A$30015,B5,'Avantages perçus'!$F$2:$F$30015,">0") -> 446 | E5: =COUNTIFS('Conventions signées'!$A$2:$A$15002,B5,'Conventions signées'!$A$2:$A$15002,"*") -> 269 | F5: =Rémunérations!E101+'Conventions signées'!G272 -> 200272 | G5: 80338 | H5: 19950 | I5: 15905 | J5: 2960 | K5: 6732 | L5: 0 | M5: 371 | N5: 7336 | O5: 52 | P5: 39 | Q5: 36 | R5: 38 | S5: 70 | T5: 14 | U5: 15 | V5: 4 | W5: 0 | X5: 0 | Y5: 1 | Z5: 39557 | AA5: 33064 | AB5: 18749 | AC5: 14493 | AD5: 9971 | AE5: 8930 | AF5: 2535 | AG5: 1077 | AH5: 875 | AI5: 757 | AJ5: 710 | AK5: 400 | AL5: 309 | AM5: 309 | AN5: 188 | AO5: 165 | AP5: 147 | AQ5: 139 | AR5: 130 | AS5: 120 | AT5: 116 | AU5: 100 | AV5: 99 | AW5: 94 | AX5: 84 | AY5: 81 | AZ5: 64 | BA5: 55 | BB5: 49 | BC5: 48 | BD5: 44 | BE5: 40 | BF5: 35 | BG5: 35 | BH5: 23 | BI5: 72 | BJ5: 57 | BK5: 53 | BL5: 48 | BM5: 45 | BN5: 34 | BO5: 18 | BP5: 16 | BQ5: 10 | BR5: 9 | BS5: 8 | BT5: 6 | BU5: 6 | BV5: 5 | BW5: 5 | BX5: 5 | BY5: 5 | BZ5: 5 | CA5: 4 | CB5: 4 | CC5: 4 | CD5: 3 | CE5: 3 | CF5: 3 | CG5: 3 | CH5: 2 | CI5: 2 | CJ5: 2 | CK5: 2 | CL5: 2 | CM5: 1 | CN5: 1 | CO5: 1 | CP5: 1 | CQ5: 1 | CR5: 46 | CS5: 33 | CT5: 27 | CU5: 24 | CV5: 22 | CW5: 17 | CX5: 10 | CY5: 9 | CZ5: 8 | DA5: 6 | DB5: 5 | DC5: 5 | DD5: 4 | DE5: 4 | DF5: 4 | DG5: 4 | DH5: 3 | DI5: 3 | DJ5: 3 | DK5: 3 | DL5: 2 | DM5: 2 | DN5: 2 | DO5: 2 | DP5: 1 | DQ5: 1 | DR5: 1 | DS5: 1 | DT5: 1 | DU5: 1 | DV5: 1 | DW5: 1 | DX5: 1 | DY5: 1 | DZ5: 1 | EA5: 1 | EB5: 1 | EC5: 1 | ED5: 1 | EE5: 1 | EF5: 1 | EG5: 1 | EH5: 1 | EI5: 1 | EJ5: 1
B6: TOTAUX | C6: 133592 | D6: 446 | E6: 269 | F6: =F5 -> 200272 | G6: 80338 | H6: 19950 | I6: 15905 | J6: 2960 | K6: 6732 | L6: 0 | M6: 371 | N6: 7336 | O6: 52 | P6: 39 | Q6: 36 | R6: 38 | S6: 70 | T6: 14 | U6: 15 | V6: 4 | W6: 0 | X6: 0 | Y6: 1 | Z6: 39557 | AA6: 33064 | AB6: 18749 | AC6: 14493 | AD6: 9971 | AE6: 8930 | AF6: 2535 | AG6: 1077 | AH6: 875 | AI6: 757 | AJ6: 710 | AK6: 400 | AL6: 309 | AM6: 309 | AN6: 188 | AO6: 165 | AP6: 147 | AQ6: 139 | AR6: 130 | AS6: 120 | AT6: 116 | AU6: 100 | AV6: 99 | AW6: 94 | AX6: 84 | AY6: 81 | AZ6: 64 | BA6: 55 | BB6: 49 | BC6: 48 | BD6: 44 | BE6: 40 | BF6: 35 | BG6: 35 | BH6: 23 | BI6: 72 | BJ6: 57 | BK6: 53 | BL6: 48 | BM6: 45 | BN6: 34 | BO6: 18 | BP6: 16 | BQ6: 10 | BR6: 9 | BS6: 8 | BT6: 6 | BU6: 6 | BV6: 5 | BW6: 5 | BX6: 5 | BY6: 5 | BZ6: 5 | CA6: 4 | CB6: 4 | CC6: 4 | CD6: 3 | CE6: 3 | CF6: 3 | CG6: 3 | CH6: 2 | CI6: 2 | CJ6: 2 | CK6: 2 | CL6: 2 | CM6: 1 | CN6: 1 | CO6: 1 | CP6: 1 | CQ6: 1 | CR6: 46 | CS6: 33 | CT6: 27 | CU6: 24 | CV6: 22 | CW6: 17 | CX6: 10 | CY6: 9 | CZ6: 8 | DA6: 6 | DB6: 5 | DC6: 5 | DD6: 4 | DE6: 4 | DF6: 4 | DG6: 4 | DH6: 3 | DI6: 3 | DJ6: 3 | DK6: 3 | DL6: 2 | DM6: 2 | DN6: 2 | DO6: 2 | DP6: 1 | DQ6: 1 | DR6: 1 | DS6: 1 | DT6: 1 | DU6: 1 | DV6: 1 | DW6: 1 | DX6: 1 | DY6: 1 | DZ6: 1 | EA6: 1 | EB6: 1 | EC6: 1 | ED6: 1 | EE6: 1 | EF6: 1 | EG6: 1 | EH6: 1 | EI6: 1 | EJ6: 1
B9: Période d'étude | C9: 1er semestre 2013 - 1 semestre 2018, soient 5 années et demi
B10: Début de l'analyse | C10: 26/09/2018 21:56:05
B11: Fin de l'analyse | C11: 26/09/2018 21:56:25
D13: % | E13: Cumul%
B14: SANOFI-AVENTIS | C14: ='Avantages perçus'!F460+'Conventions signées'!G294+Rémunérations!E109 -> 141564 | D14: =C14/(C$5+F$5) -> 0.424016965 | E14: =D14 -> 0.424016965
B15: BRISTOL-MYERS SQUIBB | C15: ='Avantages perçus'!F458+'Conventions signées'!G284+Rémunérations!E112 -> 47831 | D15: =C15/(C$5+F$5) -> 0.1432649222 | E15: =E14+D15 -> 0.5672818872
B16: NOVARTIS PHARMA | C16: ='Avantages perçus'!F459+'Conventions signées'!G286+Rémunérations!E111 -> 42319 | D16: =C16/(C$5+F$5) -> 0.1267552057 | E16: =E15+D16 -> 0.6940370929
B17: JANSSEN-CILAG | C17: ='Avantages perçus'!F461+'Conventions signées'!G288+Rémunérations!E110 -> 31833 | D17: 0.09534720725 | E17: 0.7893843002
B18: IPSEN PHARMA | C18: ='Avantages perçus'!F468+'Conventions signées'!G283+Rémunérations!E115 -> 19228 | D18: 0.05759231304 | E18: 0.8469766132
B19: ASTELLAS PHARMA | C19: ='Avantages perçus'!F462+'Conventions signées'!G285+Rémunérations!E113 -> 18890 | D19: 0.05657992476 | E19: 0.903556538
B20: PFIZER | C20: ='Avantages perçus'!F464+'Conventions signées'!G295+Rémunérations!E114 -> 5317 | D20: 0.01592564637 | E20: 0.9194821844
B21: ASTRAZENECA | C21: ='Avantages perçus'!F469+'Conventions signées'!G287+Rémunérations!E117 -> 5200 | D21: 0.01557520427 | E21: 0.9350573886
B22: Takeda France | C22: ='Avantages perçus'!F463 -> 2535 | D22: 0.007592912084 | E22: 0.9426503007
B23: MSD France | C23: ='Avantages perçus'!F477+'Conventions signées'!G290+Rémunérations!E119 -> 2472 | D23: 0.007404212494 | E23: 0.9500545132
